Cogmind - Beta 15 @@@ ROGUE MODE // 2025.06.18 @ 08:45:11 Player: Infomantis Result: Escaped! Performance ------------- Evolutions (9) 4500 Regions Visited (28) 5600 Robots Destroyed (387) 1935 Value Destroyed (17871) 17871 Prototype IDs (381) 7620 Alien Tech Used (3) 600 Bonus (30764) 30764 TOTAL SCORE: 68890 Bonus ------- High Alert Combat Kills 1128 Follower Combat Kills 2042 Awakened Behemoth Slayer 1000 Network Hubs Disabled 400 Met Imprinter 300 Destroyed Z-Imprinter 1000 Triggered Deep Caves Wall 500 Exposed GOLEM Chamber 500 Met Zhirov 300 Built Enhanced Grunts 300 A7 Reached Mainframe 300 Met R17 at Cetus 500 Met R17 at Research 2000 Acquired SGEMP 2000 Delivered SGEMP 2000 Destroyed MAIN.C Guards 500 Met MAIN.C 5000 Hacked MAIN.C 300 Destroyed MAIN.C Shell 5000 Zhirov Destroyed MAIN.C 3000 Win 3000 Friendly Fire -306 Cogmind --------- Core Integrity 1417/1600 Matter 300/300 Energy 2970/2980 System Corruption 3% Temperature Cool (4) Movement Walking (87) Location To Epsilon Eridani Parts ------- > --- POWER (3) -------- Zero-point Reactor Zero-point Reactor > --- PROPULSION (4) --- High-density Centrium Leg High-density Centrium Leg Experimental Biometal Leg Experimental Biometal Leg > --- UTILITY (16) ----- Experimental Cooling System Assembled Nanovents Assembled Nanovents Large Storage Unit Experimental Energy Well Assembled Biocell Array Assembled Biocell Array Assembled Suspension Frame Assembled Metafiber Network Assembled Combat Suite Advanced Particle Accelerator Centrium Medium Armor Plating Centrium Medium Armor Plating Assembled Alloy Armor Advanced Point Defense System > --- WEAPON (3) ------- Assembled Focal Cannon Assembled Focal Cannon Z-bomb Delivery System > --- INVENTORY (15) --- Micro Antimatter Reactor High-density Centrium Leg High-density Centrium Leg Experimental Energy Well (0) Experimental Energy Well (600) Zionite Biocell (600) Experimental Matter Compressor (500) Advanced Force Field Mobile Refinery Mk. CCLXVII Transdimensional Reconstructor Compact Linear Accelerator Perforator Advanced Remote Datajack Peak State ------------ > --- POWER ------------ Graviton Reactor Assembled Flux Generator > --- PROPULSION ------- Assembled Alloy Leg Assembled Alloy Leg High-density Centrium Leg High-density Centrium Leg > --- UTILITY ---------- Experimental Cooling System Assembled Nanovents Assembled Nanovents Large Storage Unit Assembled Biocell Array Assembled Biocell Array Assembled Suspension Frame Assembled Metafiber Network Assembled Combat Suite Centrium Medium Armor Plating Centrium Medium Armor Plating Assembled Alloy Armor Experimental Shield Generator Advanced Point Defense System GOLEM Unit > --- WEAPON ----------- Assembled Focal Cannon Perforator > --- INVENTORY -------- Improved Thunder Leg Experimental Energy Well Zionite Biocell Experimental Matter Compressor Experimental Matter Compressor Advanced Force Field Mobile Refinery Mk. CCLXVII Transdimensional Reconstructor HERF Cannon HERF Cannon HERF Cannon Proton Burst Cannon Compact Linear Accelerator Z-bomb Delivery System Advanced Remote Datajack [Rating: 242] Favorites ----------- Power F-cell Engine Engine F-cell Engine Power Core Fission Core Reactor Graviton Reactor Propulsion Assembled Alloy Leg Treads Advanced Treads Leg Assembled Alloy Leg Wheel Compact Wheel Hover Unit Aerolev Unit Flight Unit Improved Flight Unit Utility Large Storage Unit Device GOLEM Unit Storage Large Storage Unit Processor Improved Signal Interpreter Hackware Hacking Suite Protection Assembled Alloy Armor Weapon Assembled Focal Cannon Energy Gun Improved Heavy Laser Energy Cannon Assembled Focal Cannon Ballistic Gun Assault Rifle Ballistic Cannon Assault Cannon Launcher Advanced EMP Blaster Special Weapon Advanced Remote Datajack Impact Weapon Powered Hammer Piercing Weapon CR-A16's Pointy Stick Special Melee Weapon Improved Datajack Build | -11 -10 -10 -9 -9 -8 -8 -7 -7 -7 -7 -7 -6 -6 -6 -6 -6 -6 -5 -5 -5 -5 -4 -4 -3 -2 -2 -1 -1 ------- Run | Yrd Mat Min Mat Min Mat Sto Fac Low Low Zio Dee Pro Fac Ext Cet Arc Hub Fac Upp Upp Zhi Pro Fac Res Res Tes Acc Com Slots Evolved 18 | . . . 2 . 2 . 2 . . . . . 2 . . . . 2 . . . . 2 2 2 . 2 . Power 1 | . . . . . . . 1 . . . . . . . . . . . . . . . . . . . . . Propulsion 2 | . . . 1 . 1 . . . . . . . . . . . . . . . . . . . . . . . Utility 14 | . . . 1 . . . 1 . . . . . 2 . . . . 2 . . . . 2 2 2 . 2 . Weapon 1 | . . . . . 1 . . . . . . . . . . . . . . . . . . . . . . . Parts Attached 326 | 7 11 . 35 17 25 24 14 3 3 4 29 6 7 10 10 12 4 20 3 4 4 3 19 13 5 14 . 20 Power 47 | 1 1 . 7 3 2 1 2 . 2 . 2 . . 4 1 3 . 3 . 1 . 1 3 3 2 . . 5 Engine 26 | 1 1 . 6 3 2 1 1 . 1 . 1 . . 4 . 2 . 1 . 1 . . . . . . . 1 Core 9 | . . . 1 . . . 1 . 1 . . . . . . 1 . 2 . . . 1 2 . . . . . Reactor 12 | . . . . . . . . . . . 1 . . . 1 . . . . . . . 1 3 2 . . 4 Propulsion 79 | 2 3 . 12 5 11 10 3 1 1 . 4 . 1 2 1 1 3 3 . 1 1 . 7 2 . 3 . 2 Treads 32 | 2 . . 12 1 5 7 3 1 . . 1 . . . . . . . . . . . . . . . . . Leg 35 | . 2 . . 2 3 . . . . . 3 . 1 2 1 1 3 3 . 1 . . 6 2 . 3 . 2 Wheel 7 | . 1 . . 2 3 1 . . . . . . . . . . . . . . . . . . . . . . Hover 4 | . . . . . . 1 . . 1 . . . . . . . . . . . 1 . 1 . . . . . Flight 1 | . . . . . . 1 . . . . . . . . . . . . . . . . . . . . . . Utility 118 | 2 2 . 5 5 2 6 6 2 . 2 13 3 6 2 5 7 . 10 2 1 2 2 7 7 3 7 . 9 Device 59 | 1 1 . 1 2 1 1 4 1 . 1 3 2 4 1 2 7 . 6 1 1 1 2 2 2 2 5 . 5 Storage 12 | 1 1 . 1 . . . . . . . 1 . . 1 . . . 1 . . . . 1 2 1 . . 2 Processor 13 | . . . 1 . . 2 . 1 . . 1 . 1 . 1 . . 1 1 . . . 2 1 . 1 . . Hackware 4 | . . . . . . . 2 . . . . . . . . . . 1 . . . . 1 . . . . . Protection 30 | . . . 2 3 1 3 . . . 1 8 1 1 . 2 . . 1 . . 1 . 1 2 . 1 . 2 Artifact . | . . . . . . . . . . . . . . . . . . . . . . . . . . . . . Weapon 82 | 2 5 . 11 4 10 7 3 . . 2 10 3 . 2 3 1 1 4 1 1 1 . 2 1 . 4 . 4 Energy Gun 29 | 2 2 . 5 1 7 3 . . . 1 6 . . . 1 . . . . . . . . . . 1 . . Energy Cannon 15 | . . . 1 . . . . . . . 1 1 . 2 1 . 1 2 . 1 . . 2 . . . . 3 Ballistic Gun 11 | . 3 . 5 . 1 . . . . . . 1 . . 1 . . . . . . . . . . . . . Ballistic Cannon 5 | . . . . 1 2 . . . . . . . . . . . . . 1 . . . . . . 1 . . Launcher 11 | . . . . 1 . 1 2 . . . 3 . . . . . . 1 . . . . . 1 . 2 . . Special Weapon 3 | . . . . 1 . . . . . 1 . . . . . . . . . . . . . . . . . 1 Impact Weapon 2 | . . . . . . 1 1 . . . . . . . . . . . . . . . . . . . . . Slashing Weapon . | . . . . . . . . . . . . . . . . . . . . . . . . . . . . . Piercing Weapon 2 | . . . . . . . . . . . . 1 . . . . . . . . 1 . . . . . . . Special Melee Weapon 4 | . . . . . . 2 . . . . . . . . . 1 . 1 . . . . . . . . . . Unidentified Prototypes 47 | . . . 4 . 1 4 . . . 1 8 . 1 . 4 . 2 . 1 . 4 1 1 3 2 6 . 4 Corrupted Parts 2 | . . . . . . . . . . . 2 . . . . . . . . . . . . . . . . . System Corruption 10 | . . . . . . . . . . . 10 . . . . . . . . . . . . . . . . . Parts Lost 67 | . 4 . 7 10 1 9 . 1 . . 9 1 2 . . . 6 1 . . . . 5 1 . . . 10 Power 10 | . . . 1 2 . . . . . . 2 . . . . . 1 . . . . . 2 . . . . 2 Propulsion 22 | . 2 . 2 5 1 4 . 1 . . 3 . . . . . 1 . . . . . . 1 . . . 2 Utility 24 | . 1 . 2 2 . 2 . . . . 3 1 2 . . . 3 1 . . . . 2 . . . . 5 Weapon 11 | . 1 . 2 1 . 3 . . . . 1 . . . . . 1 . . . . . 1 . . . . 1 Highest Loss Streak 7 | . 2 . 4 4 1 7 . 1 . . 4 1 2 . . . 5 1 . . . . 4 1 . . . 5 To Critical Strikes . | . . . . . . . . . . . . . . . . . . . . . . . . . . . . . Average Backups 13 | 3 8 14 14 13 14 14 14 15 14 14 12 13 13 14 13 13 13 13 14 14 14 13 14 14 15 14 13 12 Power . | . 1 2 . . 1 1 1 1 1 1 . 1 . 1 1 . 1 1 1 1 1 1 1 . 1 1 1 . Propulsion . | . . 1 2 1 1 . 1 1 1 1 . 1 . . 1 . . . . . . . . 1 1 1 1 . Utility 8 | . 4 8 7 8 8 7 5 6 7 6 7 9 10 10 9 9 9 9 10 10 9 8 8 7 8 8 6 5 Weapon 3 | 1 1 3 3 3 3 4 5 5 4 4 4 1 1 2 2 1 2 2 3 3 3 2 3 2 2 3 3 3 Tool/Special . | . . . . . . . . . . . . . . . . . . . . . . . . . . . . . Unused Backups 49 | . . . 9 5 5 3 1 . 1 1 4 1 2 2 . . . 1 1 . . 1 1 . 2 1 . 8 Power 5 | . . . 1 2 . 1 1 . . . . . . . . . . . . . . . . . . . . . Propulsion 9 | . . . 2 . . . . . . . . 1 . 1 . . . 1 1 . . . . . 1 . . 2 Utility 23 | . . . 4 3 2 1 . . 1 1 3 . 1 1 . . . . . . . 1 . . 1 1 . 3 Weapon 10 | . . . 2 . 3 1 . . . . . . 1 . . . . . . . . . 1 . . . . 2 Tool/Special 2 | . . . . . . . . . . . 1 . . . . . . . . . . . . . . . . 1 Average Slot Usage (%) 93 | . 98 100 95 92 99 95 99 99 100 98 81 91 85 88 93 92 90 95 99 99 99 95 94 89 94 94 94 88 Engine 5 | . 14 14 10 9 8 9 8 6 7 7 5 . . 4 7 5 5 4 5 5 5 5 4 . . . . . Core 2 | . . . . . . . 5 7 7 7 . . . . . . . 4 5 5 5 7 5 4 . . . . Reactor 2 | . . . . . . . . . . . 1 7 5 3 4 6 6 . . . . . 3 4 11 12 11 7 Treads 9 | . 24 . 27 9 21 23 19 27 29 30 12 . . . . . . . . . . . . . . . . . Leg 15 | . 2 28 4 10 5 . . . . . 15 30 25 26 26 26 25 22 23 23 22 22 19 17 16 16 15 12 Wheel 1 | . . . . 8 8 10 10 1 . . . . . . . . . . . . . . . . . . . . Device 13 | . 13 14 6 10 9 6 7 6 7 7 5 10 13 13 12 14 14 16 16 17 16 16 18 20 28 29 32 28 Storage 10 | . 14 14 11 11 9 9 7 7 7 7 6 15 12 13 13 12 13 11 11 11 11 10 10 8 8 8 7 13 Processor 6 | . . . 9 . . 2 7 14 15 13 5 . . . . . . 3 10 11 11 9 6 10 8 8 5 . Protection 5 | . . . 3 10 9 8 . . . 1 4 4 5 6 6 4 5 4 5 5 5 4 5 8 8 8 8 11 Energy Gun 5 | . 15 . 6 10 17 15 14 13 14 16 12 2 . . . . . . . . . . . . . . . . Energy Cannon 8 | . . . . 5 . . . . . . 2 14 12 17 20 19 19 16 16 16 16 15 14 12 11 11 10 7 Ballistic Gun 1 | . 12 28 15 2 . . . . . . . . . . . . . . . . . . . . . . . . Impact Weapon 1 | . . . . . . 6 7 7 7 3 . . . . . . . . . . . . . . . . . . Peak Build Rating 242 | 7 8 9 19 24 27 37 49 49 53 55 110 101 123 122 119 123 120 138 113 114 114 135 153 173 200 212 229 242 Average Rating 93 | 5 7 8 14 20 25 27 44 48 50 51 59 95 111 115 113 118 118 115 110 109 110 115 145 165 196 200 221 218 On Entrance 89 | . 7 8 9 16 23 27 34 47 48 52 53 99 94 115 110 118 120 114 109 111 110 111 124 127 173 196 210 225 Naked Turns . | . . . . . . . . . . . . . . . . . . . . . . . . . . . . . Heaviest Build 158 | 14 34 28 37 38 49 49 51 51 55 59 108 98 104 107 97 101 102 100 99 97 95 96 105 113 129 134 137 158 Greatest Support 142 | 40 40 20 60 63 60 26 26 88 88 88 108 108 108 105 105 110 113 120 100 100 100 100 125 133 136 140 140 142 Greatest Overweight (x) 4 | . 2 1 1 3 4 4 3 3 . . 2 . 1 1 1 1 1 1 . . 1 1 1 1 . . . 1 Average Overweight (x) . | . . 1 . 1 2 1 1 . . . . . . . . . . . . . . . . . . . . . Largest Inventory Capacity 15 | 8 15 15 15 15 15 15 15 15 15 15 15 15 15 15 15 15 15 15 15 15 15 15 15 15 15 15 15 15 Average Capacity 14 | 7 9 15 15 15 15 15 15 15 15 15 14 15 14 15 15 14 15 14 15 15 15 14 14 14 15 15 15 15 Most Carried 15 | 7 14 15 15 15 15 15 15 15 15 15 15 15 15 15 15 15 15 15 15 15 15 15 15 15 15 15 15 15 Average Carried 14 | 3 8 14 14 13 14 14 14 14 14 14 13 14 14 15 14 14 14 14 14 15 15 14 14 14 14 14 14 13 Final Capacity 15 | 8 15 15 15 15 15 15 15 15 15 15 15 15 15 15 15 15 15 15 15 15 15 15 15 15 15 15 15 15 Final Carried 15 | 7 14 15 15 15 15 15 15 15 15 15 15 15 15 15 15 15 15 15 15 15 15 15 15 15 15 15 15 15 Class Distribution -------------------- 24% | Mutant 17% | Skirmisher 8% | Gunner 8% | Golem 8% | Scavenger-Golem 8% | Scavenger-Mutant 7% | Scavenger-Tank 6% | Tank 4% | Scavenger-Skirmisher 4% | Commander-Golem Dominant Class ---------------- Mutant | -10/Materials Scavenger-Mutant | -10/Mines Scavenger-Mutant | -9/Materials Mutant | -9/Mines Tank | -8/Materials Mutant | -8/Storage Mutant | -7/Factory Mutant | -7/Lower Caves Mutant | -7/Lower Caves Mutant | -7/Zion Gunner | -7/Deep Caves Mutant | -6/Proximity Caves Golem | -6/Factory Commander-Golem | -6/Extension Golem | -6/Cetus Golem | -6/Archives Scavenger-Golem | -6/Hub_04(d) Skirmisher | -5/Factory Skirmisher | -5/Upper Caves Skirmisher | -5/Upper Caves Skirmisher | -5/Zhirov Skirmisher | -4/Proximity Caves Scavenger-Skirmisher | -4/Factory Tank | -3/Research Tank | -2/Research Scavenger-Tank | -2/Testing Scavenger-Golem | -1/Access Scavenger-Tank | -1/Command Resources | -11 -10 -10 -9 -9 -8 -8 -7 -7 -7 -7 -7 -6 -6 -6 -6 -6 -6 -5 -5 -5 -5 -4 -4 -3 -2 -2 -1 -1 ----------- Run | Yrd Mat Min Mat Min Mat Sto Fac Low Low Zio Dee Pro Fac Ext Cet Arc Hub Fac Upp Upp Zhi Pro Fac Res Res Tes Acc Com Matter Collected 9958 | 270 153 34 795 714 460 400 208 217 70 80 850 185 239 341 199 189 70 265 120 315 91 303 553 302 336 710 157 1332 Remotely . | . . . . . . . . . . . . . . . . . . . . . . . . . . . . . Salvage Created 20399 | 149 402 64 1658 429 950 940 202 338 44 . 1471 592 746 1193 177 472 1532 852 512 288 91 231 2036 585 626 1361 523 1935 Parts 946 | 11 18 9 110 18 54 52 10 14 2 . 26 30 31 47 7 31 47 46 15 24 . 22 104 24 31 84 23 56 Haulers Intercepted 12 | . . . 4 . 1 2 . . . . . . . 1 . . . 2 . . . . . 2 . . . . Recyclers Shooed 8 | . . . . . . . . . . . . . 1 . . . . 1 . . . . 3 1 . . 2 . Parts Field Recycled . | . . . . . . . . . . . . . . . . . . . . . . . . . . . . . Retrieved Matter . | . . . . . . . . . . . . . . . . . . . . . . . . . . . . . Parts Self-Destructed 89 | . . . . . . . . 6 11 3 . 25 . . . . . . 14 12 . 18 . . . . . . Prevented 16 | . . . . . . . . 9 . . . . . . . . . . . 7 . . . . . . . . Kills | -11 -10 -10 -9 -9 -8 -8 -7 -7 -7 -7 -7 -6 -6 -6 -6 -6 -6 -5 -5 -5 -5 -4 -4 -3 -2 -2 -1 -1 ------- Run | Yrd Mat Min Mat Min Mat Sto Fac Low Low Zio Dee Pro Fac Ext Cet Arc Hub Fac Upp Upp Zhi Pro Fac Res Res Tes Acc Com Combat Hostiles Destroyed 360 | . 13 4 40 23 20 14 4 5 . . 55 10 10 15 2 2 26 10 8 9 . 9 37 7 6 16 5 10 Melee 3 | . . . . . . . . . . . . 1 1 . . . 1 . . . . . . . . . . . Guns 96 | . 13 4 32 13 12 9 2 4 . . 7 . . . . . . . . . . . . . . . . . Cannons 154 | . . . . 5 6 3 . . . . . 9 9 11 2 2 23 10 8 2 . 2 26 3 4 16 5 8 AOE 83 | . . . 8 4 1 . 1 1 . . 42 . . . . . . . . 7 . 6 9 4 . . . . Classes Destroyed 29 | 2 2 . 8 2 2 1 . 2 . . 3 2 1 . . . 1 . . . . . . . . 3 . . Worker 9 | . . . 4 1 . . . . . . . . . . . . 1 . . . . . . . . 2 . 1 Builder 9 | . . . . . 1 1 . . . . . . 1 2 . . . . . . . . 2 . . 1 1 . Tunneler 10 | 4 . . 2 . 1 . 1 . . . . . . 2 . . . . . . . . . . . . . . Hauler 12 | . . . 4 . 1 2 . . . . . . . 1 . . . 2 . . . . . 2 . . . . Recycler 10 | 1 . . . 2 . 1 . . . . . . 1 . . . . . . . . . . 1 1 . 1 2 Minesweeper 2 | . . . . . . . . 1 . . . . . . . . . . . . . 1 . . . . . . Mechanic 2 | . . . . . 1 . . . . . . . . . . . . . . . . . 1 . . . . . Operator 17 | . . . 1 . . 1 . . . . . . . . . 9 . 1 . . . . 3 . . 2 . . Drone 4 | . . . . . . . . . . . . 2 . . . . . . . . . 2 . . . . . . Watcher 12 | . . . 2 . 2 2 . . . . . . . 1 . . . 2 . . . . 1 . . 1 . 1 Swarmer 56 | . 6 4 10 . 7 . . . . . . . 1 1 . . . . 1 5 . 5 10 4 . . . 2 Saboteur 1 | . . . . . . . . . . . . . . . . . 1 . . . . . . . . . . . Grunt 94 | . 7 . 19 3 8 5 4 4 . . . 2 3 3 . . 19 2 3 . . . 5 3 . 3 1 . Brawler 7 | . . . 2 . . . . . . . . . 2 . . . 2 1 . . . . . . . . . . Duelist 7 | . . . 2 1 1 . . . 1 . . . . . . . . . 1 . . . . . . 1 . . Protector 1 | . . . 1 . . . . . . . . . . . . . . . . . . . . . . . . . Sentry 44 | . . . 6 . 4 6 . . . . . 1 3 8 . 2 3 . 1 1 . . 6 . 1 . . 2 Demolisher 3 | . . . . 2 . 1 . . . . . . . . . . . . . . . . . . . . . . Specialist 1 | . . . . . . . . . . . . . . . . . . . . . . . . . . 1 . . Hunter 22 | . . . . . . 2 . . . . . 4 . 2 . . . 3 . 3 . . 7 . 1 . . . Programmer 33 | . . . . . . . . . . . . . 1 . . . 1 4 1 . . 1 9 . 3 8 4 1 Behemoth 4 | . . . . . . . . . . . . 1 . 1 . . . . . . . 1 . . 1 . . . Cetus Guard 2 | . . . . . . . . . . . . . . . 2 . . . . . . . . . . . . . M Guard 2 | . . . . . . . . . . . . . . . . . . . . . . . . . . . . 2 Combat Programmer 2 | . . . . . . . . . . . . . . . . . . . . . . . . . . . . 2 Striker 2 | . . . . . . . . . . . . . . . . . . . . . . . . . . 2 . . Alpha 7 1 | . . . . . . . . . . . . . . . . . . . . . . . . . . 1 . . Z-Light 8 | . . . . . . . . . . . 8 . . . . . . . . . . . . . . . . . Assembler 2 | . . . . . . . . . . . 2 . . . . . . . . . . . . . . . . . Assembled 60 | . . . . 17 . . . . . . 43 . . . . . . . . . . . . . . . . . Golem 3 | . . . . . . . . . . . 3 . . . . . . . . . . . . . . . . . Thug 1 | . . . . . . . . . . . . . . . . . . . 1 . . . . . . . . . Guerrilla 2 | . . . . . . . . . . . . . . 1 1 . . . . . . . . . . . . . Mutant 1 | . . . . . . . . 1 . . . . . . . . . . . . . . . . . . . . Best Kill Streak 39 | 2 8 3 9 12 7 5 2 2 . . 39 3 4 4 1 3 5 4 3 5 . 7 7 4 3 4 4 3 Combat Bots Only 36 | . 8 3 9 12 7 3 2 2 . . 36 3 3 3 1 1 5 3 3 5 . 7 6 4 3 4 3 2 Max Kills in Single Turn 23 | 1 2 2 7 2 2 1 1 1 1 . 23 1 2 1 1 2 1 1 1 2 . 2 5 2 1 2 2 1 Gunslinging 1 | . 1 1 1 1 . . . . . . 1 . . . . . . . . . . . . . . . . . Exploded 23 | . . . 5 2 1 . 1 1 . . 23 . . . . . . . . 2 . 2 3 2 . . . . Melee 1 | . . . . . . . . . . . . 1 1 . . . 1 . . . . . . . . . . . Uniques/NPCs Destroyed 2 | . . . . . . . . . . . 1 . . . . . . . . . . . . . . . . 1 Z-Imprinter (-7/Deep Caves) MAIN.C Shell (-1/Command) Combat | -11 -10 -10 -9 -9 -8 -8 -7 -7 -7 -7 -7 -6 -6 -6 -6 -6 -6 -5 -5 -5 -5 -4 -4 -3 -2 -2 -1 -1 -------- Run | Yrd Mat Min Mat Min Mat Sto Fac Low Low Zio Dee Pro Fac Ext Cet Arc Hub Fac Upp Upp Zhi Pro Fac Res Res Tes Acc Com Hostile Shots Fired 2032 | . 92 7 199 71 81 82 18 21 4 4 74 98 123 183 20 4 213 50 21 48 . 22 285 16 31 79 25 161 Missed 666 | . 13 3 58 15 26 22 4 2 . 3 17 22 46 72 7 1 67 17 7 18 . 10 143 8 11 25 12 37 Intercepted 16 | . . . . . . . . . . . . . . . . . . . . . . . . . . . . 16 Hits 1366 | . 79 4 141 56 55 60 14 19 4 1 57 76 77 111 13 3 146 33 14 30 . 12 142 8 20 54 13 124 Melee 36 | . . . 5 22 1 . . . . . 1 . 2 . . . 3 1 . . . . . . . 1 . . Projectile 1330 | . 79 4 136 34 54 60 14 19 4 1 56 76 75 111 13 3 143 32 14 30 . 12 142 8 20 53 13 124 AOE 31 | . . . . 9 . 14 . . . . . . . . . . . . . . . . . . . . . 8 Critical Strikes 71 | . 2 . 8 1 3 4 . 1 1 . . 2 . 1 5 . 10 2 1 . . . 7 . 2 6 2 13 Part Disruptions 11 | . . . . 2 . . . . . . . . . . . . . . . . . . . . . 1 . 8 Damage Taken 23018 | . 838 39 1973 1385 727 1418 215 333 59 29 1939 1531 824 1056 324 55 2320 530 182 431 . 213 2144 126 297 664 199 3167 Core 2206 | . 196 10 216 132 58 132 18 87 . . 208 97 93 127 49 . 220 48 28 13 . 47 196 . 41 7 . 183 Absorbed by Shields 1462 | . . . . . . . . . . . . . . 102 31 . . . 47 46 . 20 . 13 109 370 75 649 Redirected to Shielding 44 | . . . . . . . . . . . 44 . . . . . . . . . . . . . . . . . Ignored by Resistances 2530 | . . . . . . . . . . . . . . 245 70 11 359 105 47 102 . 49 449 29 85 207 54 718 Regen/Repaired (Parts) 30 | . . . . . . . . . . . . . . . . . . 30 . . . . . . . . . . Core Remaining (%) 66 | 100 . 17 . 13 . 65 . . . . . 41 . . . . 42 . . . . 86 82 100 . 96 . 88 Volleys Fired 1045 | 6 40 4 122 67 39 53 12 15 3 1 47 25 34 61 24 26 76 40 22 26 6 10 68 16 16 56 21 109 Largest 3 | 2 2 2 2 2 3 3 2 2 2 2 3 2 2 2 2 3 3 3 3 3 1 3 3 3 3 3 3 3 Hottest 264 | 90 90 40 88 124 147 148 126 126 126 126 206 115 115 75 75 140 140 221 148 148 25 148 155 155 155 75 75 264 Shots Fired 2100 | 12 79 8 241 112 107 95 24 28 6 2 89 52 64 99 40 50 146 85 51 47 6 14 168 39 36 133 47 220 Gun 669 | 12 79 8 241 79 72 82 20 26 6 2 41 1 . . . . . . . . . . . . . . . . Cannon 1351 | . . . . 25 35 13 . . . . 11 51 64 99 40 50 146 85 51 39 6 8 162 37 36 133 46 214 Launcher 73 | . . . . 3 . . 4 2 . . 37 . . . . . . . . 8 . 6 6 2 . . 1 4 Special 7 | . . . . 5 . . . . . . . . . . . . . . . . . . . . . . . 2 Kinetic 276 | . 28 8 168 26 31 13 . . . . . . . . . . . . . . . . . . . . . 2 Thermal 1516 | 12 51 . 34 83 4 4 20 26 6 2 43 52 64 90 33 50 146 85 51 39 6 8 156 37 36 133 46 199 Explosive 36 | . . . . 3 . . . . . . 9 . . . . . . . . 5 . 6 6 2 . . 1 4 Electromagnetic 270 | . . . 39 . 72 78 4 2 . . 37 . . 9 7 . . . . 3 . . 6 . . . . 13 Robot Hit Streak 34 | 4 8 3 15 11 12 9 12 12 15 . 7 5 17 22 8 6 34 21 16 25 7 8 15 10 13 25 29 31 Robot Miss Streak 10 | 1 5 2 10 3 3 3 2 2 1 3 5 3 2 2 3 4 4 3 2 1 1 . 2 2 1 1 2 3 Penetration Max . | . . . . . . . . . . . . . . . . . . . . . . . . . . . . . Secondary Targets 15 | . 3 1 4 2 2 . . . . . 3 . . . . . . . . . . . . . . . . . Max Gunslinging Chain 2 | . 1 1 1 1 1 . . . . . 2 . . . . . . . . . . . . . . . . . Shots Hit Robots 1376 | 7 55 5 165 64 71 69 17 22 4 1 28 33 50 68 28 27 109 59 31 14 5 7 103 24 22 87 26 175 Core Hits 746 | 6 21 4 92 45 48 29 11 13 2 . 95 14 16 26 10 16 39 18 13 12 . 11 61 15 10 35 11 73 Critical Kills 5 | . . . 1 . . . . . . . . . . . . . . . . . . . 2 1 1 . . . Critical Parts Destroyed 5 | . . . 1 . . 2 . . . . . . . . . . . . . . . . . . . . . 2 Critical Strikes 28 | . 2 . 3 5 2 4 1 . . . 2 1 . 1 . . . . . . . . 2 1 1 . . 3 Burn 11 | . 2 . 1 5 . . 1 . . . 2 . . . . . . . . . . . . . . . . . Meltdown 4 | . . . . . . . . . . . . . . . . . . . . . . . 2 1 1 . . . Destroy 4 | . . . 2 . . . . . . . . . . . . . . . . . . . . . . . . 2 Blast 3 | . . . . . 2 1 . . . . . . . . . . . . . . . . . . . . . . Corrupt 3 | . . . . . . 1 . . . . . . . 1 . . . . . . . . . . . . . 1 Smash 2 | . . . . . . 2 . . . . . . . . . . . . . . . . . . . . . . Impale 1 | . . . . . . . . . . . . 1 . . . . . . . . . . . . . . . . Melee Attacks 58 | . . . . . . 20 2 2 . 1 . 10 6 5 . . . 1 . . 6 1 . . 4 . . . Impact 21 | . . . . . . 17 2 2 . . . . . . . . . . . . . . . . . . . . Slashing . | . . . . . . . . . . . . . . . . . . . . . . . . . . . . . Piercing 32 | . . . . . . . . . . . . 10 6 5 . . . . . . 6 1 . . 4 . . . Sneak Attacks 9 | . . . . . . 3 1 1 . 1 . . 1 1 . . . 1 . . . . . . . . . . Combat Hostiles . | . . . . . . . . . . . . . . . . . . . . . . . . . . . . . Follow-up Attacks . | . . . . . . . . . . . . . . . . . . . . . . . . . . . . . Damage Inflicted 56519 | 80 636 68 3362 1265 1381 1566 717 734 124 . 4220 1356 2322 3040 1299 1377 4877 2567 1289 1129 311 857 5845 1254 976 4629 1597 7641 Guns 6928 | 80 634 68 2310 767 769 1038 314 442 124 . 382 . . . . . . . . . . . . . . . . . Cannons 40337 | . . . . 298 525 198 . . . . 182 1155 2146 2923 1299 1377 4756 2566 1289 424 311 331 4799 920 976 4624 1597 7641 Explosions 8039 | . . . 1052 169 87 . 309 194 . . 3656 . . . . . . . . 705 . 526 1007 334 . . . . Melee 985 | . . . . . . 330 94 98 . . . 201 162 100 . . . . . . . . . . . . . . Ramming 206 | . 2 . . 7 . . . . . . . . 14 17 . . 121 1 . . . . 39 . . 5 . . Kinetic 3082 | . 246 68 1665 374 505 198 . . . . . . . . . . . . . . . . . . . . . 26 Thermal 41791 | 80 388 . 649 715 107 58 314 442 124 . 549 1155 2146 2687 1128 1377 4756 2566 1289 424 311 331 4651 920 976 4624 1597 7427 Explosive 4545 | . . . 669 169 . . . . . . 1286 . . . . . . . . 554 . 526 1007 334 . . . . Electromagnetic 5910 | . . . 379 . 769 980 309 194 . . 2385 . . 236 171 . . . . 151 . . 148 . . . . 188 Impact 522 | . . . . . . 330 94 98 . . . . . . . . . . . . . . . . . . . . Slashing . | . . . . . . . . . . . . . . . . . . . . . . . . . . . . . Piercing 463 | . . . . . . . . . . . . 201 162 100 . . . . . . . . . . . . . . Highest Corruption 21 | . . . 4 13 . . 1 . . . 11 11 21 21 21 21 2 . . . . . 1 2 2 5 3 14 Average Corruption 10 | . . . 4 10 . . 1 . . . 10 11 16 21 21 16 2 . . . . . 1 2 1 3 2 9 Corruption Purged 33 | . . . . . . . 1 . . . . . . . . 21 . . . . . . . . . . . 11 Corruption Blocked . | . . . . . . . . . . . . . . . . . . . . . . . . . . . . . Effects 460 | . . . 21 42 . . 1 . . . 44 40 55 98 22 14 3 . . . . . . 9 4 26 5 76 Message Errors 125 | . . . 2 11 . . . . . . 14 5 18 33 3 4 1 . . . . . . 3 . 8 3 20 Matter Fused 104 | . . . 6 8 . . . . . . 11 14 12 19 4 2 . . . . . . . 1 2 3 1 21 Heat Flow Errors 49 | . . . 1 7 . . . . . . 7 3 6 9 1 4 . . . . . . . 1 1 1 . 8 Energy Discharges 50 | . . . 5 5 . . 1 . . . 5 8 4 7 3 1 . . . . . . . . . 8 . 3 Parts Rejected 3 | . . . . . . . . . . . . . 1 1 . . . . . . . . . . . . . 1 Parts Fused 4 | . . . . 1 . . . . . . . . 1 . 1 . . . . . . . . . . . . 1 Data Loss (minor) 52 | . . . 4 3 . . . . . . 4 4 5 12 2 . . . . . . . . 2 1 2 1 12 Data Loss (major) 11 | . . . . 1 . . . . . . 3 . . 4 1 . . . . . . . . . . 1 . 1 Misfires 21 | . . . 2 2 . . . . . . . 3 3 4 3 . . . . . . . . 1 . 1 . 2 Alerts 11 | . . . 1 1 . . . . . . . 2 2 3 . . . . . . . . . . . 1 . 1 Misdirections 5 | . . . . . . . . . . . . . 2 3 . . . . . . . . . . . . . . Weapon Failures 25 | . . . . 3 . . . . . . . 1 1 3 4 3 2 . . . . . . 1 . 1 . 6 Overload Shots . | . . . . . . . . . . . . . . . . . . . . . . . . . . . . . Overflow Damage 2573 | . . . 74 . . 120 . 88 . . 115 41 115 119 12 87 175 151 70 71 . 100 216 115 29 400 199 276 Projectiles 1929 | . . . . . . 7 . . . . . 41 61 119 12 87 175 151 70 . . 67 175 60 29 400 199 276 Explosions 389 | . . . 74 . . . . . . . 115 . . . . . . . . 71 . 33 41 55 . . . . Melee 255 | . . . . . . 113 . 88 . . . . 54 . . . . . . . . . . . . . . . Knockbacks 6 | . . . . . 2 3 . 1 . . . . . . . . . . . . . . . . . . . . Impact 3 | . . . . . . 2 . 1 . . . . . . . . . . . . . . . . . . . . Kinetic 3 | . . . . . 2 1 . . . . . . . . . . . . . . . . . . . . . . Secondary . | . . . . . . . . . . . . . . . . . . . . . . . . . . . . . Self-Inflicted Damage 418 | . . . 136 78 . . . . . . 31 . . . . . 83 . . 40 . 41 9 . . . . . Shots 10 | . . . 3 2 . . . . . . 1 . . . . . 1 . . 1 . 1 1 . . . . . Rammed 3 | . 2 . . 1 . . . . . . . . . . . . . . . . . . . . . . . . Targets Rammed 31 | . 2 . . 1 . . . . . . . . 1 3 . . 15 1 . . . . 7 . . 1 . . Kicked 28 | . . . . . . . . . . . . . 1 3 . . 15 1 . . . . 7 . . 1 . . Crushed . | . . . . . . . . . . . . . . . . . . . . . . . . . . . . . Highest Temperature 439 | 60 295 . 270 251 307 216 246 258 207 69 439 204 266 259 102 259 78 183 2 . . . 213 188 113 159 . 261 Average Temperature 80 | 27 136 . 40 87 76 64 98 65 121 38 139 92 102 91 64 119 15 59 2 . . . 59 66 44 94 . 104 Received Heat Transfer 6131 | . 315 . 768 198 324 378 126 81 54 . 417 186 222 294 49 . 1193 189 71 20 . 9 334 9 18 38 43 795 Effects 8 | . 1 . . 1 . . . . . . 3 . . . . 3 . . . . . . . . . . . . Energy Bleed 3 | . 1 . . . . . . . . . 2 . . . . . . . . . . . . . . . . . Interference 4 | . . . . 1 . . . . . . . . . . . 3 . . . . . . . . . . . . Short Circuit 1 | . . . . . . . . . . . 1 . . . . . . . . . . . . . . . . . Siege Activations . | . . . . . . . . . . . . . . . . . . . . . . . . . . . . . Martial Activations . | . . . . . . . . . . . . . . . . . . . . . . . . . . . . . Shielding Activations . | . . . . . . . . . . . . . . . . . . . . . . . . . . . . . Robots Disrupted . | . . . . . . . . . . . . . . . . . . . . . . . . . . . . . Combat Hostiles . | . . . . . . . . . . . . . . . . . . . . . . . . . . . . . Robots Corrupted 18 | . . . . . 1 3 . 1 . . 8 . . 1 . . 1 . . . . . 1 . . . . 2 Combat Hostiles 14 | . . . . . 1 2 . . . . 6 . . 1 . . 1 . . . . . 1 . . . . 2 Parts Fried 58 | . . . . . 4 10 . 1 . . 34 . . 6 . . . . . 2 . . . . . . . 1 Impact Corruptions 9 | . . . . . . 5 . 3 . . . . . . . . 1 . . . . . . . . . . . Robots Melted 9 | . . . . 1 . . 1 . . . . . . 2 . . 1 . . . . . 2 1 1 . . . Combat Hostiles 7 | . . . . 1 . . 1 . . . . . . 2 . . 1 . . . . . 1 . 1 . . . Parts Melted 65 | . 4 . 2 . . . 3 1 . . 2 3 2 10 . 1 7 4 4 1 . . 10 . 5 4 2 . Heat Transferred 27565 | 211 1142 . 1003 1900 187 148 592 777 222 . 759 750 1325 1500 650 725 2725 1900 1025 350 125 175 2923 640 609 2325 800 2077 Parts Sabotaged . | . . . . . . . . . . . . . . . . . . . . . . . . . . . . . Parts Stolen . | . . . . . . . . . . . . . . . . . . . . . . . . . . . . . Parts Stripped . | . . . . . . . . . . . . . . . . . . . . . . . . . . . . . Power Chain Reactions 6 | . . . 3 . 2 . . . . . 1 . . . . . . . . . . . . . . . . . Alert | -11 -10 -10 -9 -9 -8 -8 -7 -7 -7 -7 -7 -6 -6 -6 -6 -6 -6 -5 -5 -5 -5 -4 -4 -3 -2 -2 -1 -1 ------- Run | Yrd Mat Min Mat Min Mat Sto Fac Low Low Zio Dee Pro Fac Ext Cet Arc Hub Fac Upp Upp Zhi Pro Fac Res Res Tes Acc Com Maximum Alert Level 3 | . 1 . 3 1 1 . . . . . . . 1 2 1 1 3 2 . . . . 3 2 . . 2 2 Low Security (%) 60 | 100 47 100 24 78 61 100 100 . . . . . 77 41 4 85 26 . . . . . 84 . 100 100 41 58 Level 1 26 | . 52 . 23 21 38 . . . . . . . 22 49 95 14 . 28 . . . . 9 98 . . 51 40 Level 2 9 | . . . 34 . . . . . . . . . . 9 . . 27 71 . . . . 3 1 . . 7 1 Level 3 3 | . . . 17 . . . . . . . . . . . . . 44 . . . . . 2 . . . . . Level 4 . | . . . . . . . . . . . . . . . . . . . . . . . . . . . . . Level 5 . | . . . . . . . . . . . . . . . . . . . . . . . . . . . . . High Security . | . . . . . . . . . . . . . . . . . . . . . . . . . . . . . Max Security . | . . . . . . . . . . . . . . . . . . . . . . . . . . . . . Peak Influence 1046 | 10 285 92 838 325 320 139 75 . . . . . 300 504 294 242 1046 572 . . . . 720 402 164 180 411 418 Initial 497 | . . 92 . 325 27 70 8 . . . . . 300 47 278 89 . 497 . . . . . 370 122 . 95 206 Average 206 | 1 135 14 406 95 182 55 12 . . . . . 177 204 247 84 586 428 . . . . 158 313 92 116 243 297 Influence Increases 12844 | 25 477 120 1376 196 673 572 125 161 130 . . 205 604 1322 283 239 1512 560 170 330 5 230 1364 268 264 617 506 510 Destroy 0b10 Robot/C 6600 | . 260 80 820 120 400 320 80 120 120 . . 160 200 620 160 80 640 200 140 180 . 140 740 140 120 320 180 260 Destroy 0b10 Robot/NC 510 | 25 . . 70 15 30 35 5 10 . . . 15 10 45 10 45 15 25 10 . 5 15 35 15 5 30 20 20 Destroy Leader 1256 | . 50 10 162 30 106 108 10 10 . . . 30 50 66 . . 122 58 20 30 . 30 172 24 30 52 34 52 Allied During Kill 1014 | . . . 14 . . 53 . 21 10 . . . . 409 78 71 138 . . . . . 24 . . . 142 54 Trap Triggered on 0b10 20 | . . . . . . 10 . . . . . . . . . . 10 . . . . . . . . . . . Successful Hack 456 | . 16 . 29 . 12 13 . . . . . . 16 41 . . . 205 . . . . 21 14 52 26 7 4 Select Force Hacks 60 | . . . 30 . 30 . . . . . . . . . . . . . . . . . . . . . . . Disable Machine 825 | . 15 . 90 . . 30 30 . . . . . 15 90 15 30 120 15 . . . . 180 15 . 120 45 15 Anti-Garrison Action 150 | . . . . . . . . . . . . . . . . . 150 . . . . . . . . . . . Destroy Structure 858 | . 1 . 56 31 5 3 . . . . . . 13 36 20 13 122 42 . . . . 192 60 42 69 78 75 Advance Influence 300 | . . . . . . . . . . . . . 300 . . . . . . . . . . . . . . . Partial Spotted 15 | . . . . . . . . . . . . . . . . . . . . . . . . . 15 . . . Lose Combat Pursuer 780 | . 135 30 105 . 90 . . . . . . . . 15 . . 195 15 . 120 . 45 . . . . . 30 Influence Decreases 12634 | 25 240 357 542 959 577 720 144 122 169 . . 205 506 922 558 462 495 1198 525 258 101 230 658 756 482 458 342 623 Entered New Map 2595 | . . 145 . 509 44 97 11 . 8 . . . . 51 220 134 . 520 141 6 96 . . 336 96 . 64 117 Time Decay 8460 | 25 200 212 432 350 523 498 133 122 141 . . 195 486 557 198 328 375 518 384 252 5 230 528 410 236 458 278 386 Lost Part 500 | . 40 . 70 100 10 20 . . . . . 10 20 . . . 60 10 . . . . 50 10 . . . 100 Lost Ally 779 | . . . 40 . . 105 . . 20 . . . . 314 140 . 60 . . . . . 80 . . . . 20 Purge Threat 300 | . . . . . . . . . . . . . . . . . . 150 . . . . . . 150 . . . Squads Dispatched 56 | . 3 . 5 1 3 3 4 . . . . . 2 1 . . 10 4 . . . . 9 3 2 3 2 1 Investigation 9 | . 1 . 1 1 2 . 3 . . . . . . . . . . . . . . . 1 . . . . . Extermination 18 | . . . . . . . . . . . . . 2 . . . 1 3 . . . . 4 . 2 3 2 1 Reinforcement 17 | . 2 . 1 . 1 1 1 . . . . . . 1 . . 3 1 . . . . 3 3 . . . . Assault 10 | . . . 3 . . 2 . . . . . . . . . . 5 . . . . . . . . . . . Garrison 2 | . . . . . . . . . . . . . . . . . 1 . . . . . 1 . . . . . Intercept . | . . . . . . . . . . . . . . . . . . . . . . . . . . . . . Searches Triggered . | . . . . . . . . . . . . . . . . . . . . . . . . . . . . . Construction Impeded 2 | . . . . . . . . . . . . . . 1 . . . . . . . . 1 . . . . . Haulers Reinforced 4 | . . . . . . . . . . . . . . . . . . 1 . . . . . 3 . . . . Active Scanning Responses . | . . . . . . . . . . . . . . . . . . . . . . . . . . . . . Cargo Convoy Interrupts . | . . . . . . . . . . . . . . . . . . . . . . . . . . . . . Stealth | -11 -10 -10 -9 -9 -8 -8 -7 -7 -7 -7 -7 -6 -6 -6 -6 -6 -6 -5 -5 -5 -5 -4 -4 -3 -2 -2 -1 -1 --------- Run | Yrd Mat Min Mat Min Mat Sto Fac Low Low Zio Dee Pro Fac Ext Cet Arc Hub Fac Upp Upp Zhi Pro Fac Res Res Tes Acc Com Distress Signals 26 | . 1 . 3 . 2 1 . . . . . . 1 2 2 . 5 1 . . . . 4 4 . . . . Communications Jammed 34 | . . . . . . . . . . . . . . . . . . . . . . 2 15 . . . 17 . Distress Signals 32 | . . . . . . . . . . . . . . . . . . . . . . . 15 . . . 17 . Times Spotted 562 | . 29 6 67 26 30 31 7 5 1 1 56 10 15 33 10 16 48 15 8 17 . 9 57 11 6 22 10 16 Peak Tracking Total 37 | . 9 3 7 5 6 11 4 4 1 1 37 2 5 6 5 1 14 4 3 5 . 4 9 4 2 3 3 4 Tactical Retreats 34 | . 4 1 4 2 3 . . . . . 4 . . 1 . . 4 1 . 6 . 2 . . . . . 2 Traps | -11 -10 -10 -9 -9 -8 -8 -7 -7 -7 -7 -7 -6 -6 -6 -6 -6 -6 -5 -5 -5 -5 -4 -4 -3 -2 -2 -1 -1 ------- Run | Yrd Mat Min Mat Min Mat Sto Fac Low Low Zio Dee Pro Fac Ext Cet Arc Hub Fac Upp Upp Zhi Pro Fac Res Res Tes Acc Com Traps Triggered 21 | . 2 . . 1 1 1 3 . . . . . 7 1 . . 2 . . . . . . . . . . 3 Indirectly 2 | . . . . . . . 2 . . . . . . . . . . . . . . . . . . . . . Trap Hack Attempts 99 | . . . . . . 99 . . . . . . . . . . . . . . . . . . . . . . Triggered . | . . . . . . . . . . . . . . . . . . . . . . . . . . . . . Disarmed 4 | . . . . . . 4 . . . . . . . . . . . . . . . . . . . . . . Reprogrammed 8 | . . . . . . 8 . . . . . . . . . . . . . . . . . . . . . . Reused 6 | . . . . . . 1 . . . . 3 . . . . . 1 . . 1 . . . . . . . . Traps Extracted 14 | . . . . . . 8 . . . . . . . . . . . . . 4 . 2 . . . . . . Installed 8 | . . . . . . 2 . . . . 4 . . . . . 1 . . 1 . . . . . . . . Triggered 3 | . . . . . . 1 . . . . . . . . . . 1 . . 1 . . . . . . . . Most Traps Carried 7 | . . . . . . 7 6 6 6 6 6 2 2 2 2 2 2 1 1 3 3 6 6 6 6 6 . . Machines | -11 -10 -10 -9 -9 -8 -8 -7 -7 -7 -7 -7 -6 -6 -6 -6 -6 -6 -5 -5 -5 -5 -4 -4 -3 -2 -2 -1 -1 ---------- Run | Yrd Mat Min Mat Min Mat Sto Fac Low Low Zio Dee Pro Fac Ext Cet Arc Hub Fac Upp Upp Zhi Pro Fac Res Res Tes Acc Com Machines Disabled 69 | . 1 . 6 . . 2 2 1 . 3 4 . 1 7 1 2 9 1 1 . 2 . 12 1 . 8 3 2 Max in Single Turn 5 | . 1 . 3 . . 1 1 1 . 1 1 . 1 1 1 1 5 1 1 . 1 . 4 1 . 1 2 1 Garrison Access 4 | . . . . . . . . . . . . . . . . . 1 . . . . . 2 . . . 1 . Network Hub 2 | . . . . . . . . . . . . . . . . . 2 . . . . . . . . . . . Machines Repaired . | . . . . . . . . . . . . . . . . . . . . . . . . . . . . . Machines Dismantled 3 | . . . . . . . . . . 3 . . . . . . . . . . . . . . . . . . Machines Sabotaged . | . . . . . . . . . . . . . . . . . . . . . . . . . . . . . Overloaded Fab Kills . | . . . . . . . . . . . . . . . . . . . . . . . . . . . . . Hacking | -11 -10 -10 -9 -9 -8 -8 -7 -7 -7 -7 -7 -6 -6 -6 -6 -6 -6 -5 -5 -5 -5 -4 -4 -3 -2 -2 -1 -1 --------- Run | Yrd Mat Min Mat Min Mat Sto Fac Low Low Zio Dee Pro Fac Ext Cet Arc Hub Fac Upp Upp Zhi Pro Fac Res Res Tes Acc Com Machines Accessed 102 | . 2 . 9 1 10 13 3 . 1 . . . 4 10 . . 3 10 3 2 4 . 9 3 3 5 4 3 Terminals 71 | . 2 . 8 1 9 11 1 . . . . . 2 10 . . 3 7 1 . . . 3 1 2 4 3 3 Fabricators 5 | . . . . . . . . . . . . . . . . . . 2 . . . . 2 1 . . . . Repair Stations 4 | . . . . . . 1 . . . . . . . . . . . 1 . . . . . 1 1 . . . Recycling Units 5 | . . . 1 . 1 1 1 . . . . . . . . . . . . . . . 1 . . . . . Scanalyzers 2 | . . . . . . . . . . . . . 1 . . . . . . . . . . . . 1 . . Garrison Access 6 | . . . . . . . 1 . . . . . 1 . . . . . . . . . 3 . . . 1 . Total Hacks 305 | . 8 . 27 2 20 27 6 . 1 . . . 10 23 . . 5 62 3 6 17 . 28 11 14 18 9 8 Successful 135 | . 5 . 16 . 10 14 1 . 1 . . . 2 6 . . 1 30 3 6 17 . 11 2 4 2 3 1 Failed 170 | . 3 . 11 2 10 13 5 . . . . . 8 17 . . 4 32 . . . . 17 9 10 16 6 7 Catastrophic 44 | . 2 . 3 1 3 4 2 . . . . . . 4 . . 1 8 . . . . 4 3 2 5 1 1 Database Lockouts . | . . . . . . . . . . . . . . . . . . . . . . . . . . . . . Manual 130 | . 6 . 20 2 16 6 2 . . . . . . 14 2 . 4 31 . . . . 15 5 3 4 . . Terminals 213 | . 8 . 26 2 18 22 2 . . . . . 4 23 . . 5 46 1 . . . 10 6 11 14 7 8 Fabricators 27 | . . . . . . . . . . . . . . . . . . 13 . . . . 10 4 . . . . Repair Stations 10 | . . . . . . 3 . . . . . . . . . . . 3 . . . . . 1 3 . . . Recycling Units 9 | . . . 1 . 2 2 2 . . . . . . . . . . . . . . . 2 . . . . . Scanalyzers 7 | . . . . . . . . . . . . . 3 . . . . . . . . . . . . 4 . . Garrison Access 13 | . . . . . . . 2 . . . . . 3 . . . . . . . . . 6 . . . 2 . Terminal Hacks 74 | . 3 . 6 . 1 10 . . 1 . . . 1 2 . . 1 14 3 6 17 . 1 . 3 2 2 1 Record 12 | . . . . . . . . . . . . . . . . . . . 2 5 5 . . . . . . . Part Schematic 10 | . 1 . 1 . . 1 . . . . . . . . . . . 3 . . 4 . . . . . . . Robot Analysis 7 | . . . . . . . . . . . . . . . . . . 3 . . 4 . . . . . . . Prototype ID Bank 6 | . . . . . . 1 . . . . . . . . . . . 1 . . 4 . . . . . . . Open Door 12 | . . . . . . 5 . . 1 . . . 1 . . . . . 1 1 . . . . . . 2 1 Branch Access Points 2 | . . . 1 . . . . . . . . . . . . . . 1 . . . . . . . . . . Terminal Index 5 | . . . 1 . 1 . . . . . . . . 1 . . . 1 . . . . 1 . . . . . Recycling Unit Index 1 | . . . 1 . . . . . . . . . . . . . . . . . . . . . . . . . Alert Level 1 | . . . . . . . . . . . . . . . . . . 1 . . . . . . . . . . Unreport Threat 2 | . . . . . . . . . . . . . . . . . . 1 . . . . . . 1 . . . Locate Traps 6 | . 1 . 1 . . 1 . . . . . . . 1 . . . 1 . . . . . . 1 . . . Dispatch Records 1 | . . . 1 . . . . . . . . . . . . . . . . . . . . . . . . . Maintenance Status 3 | . . . . . . 1 . . . . . . . . . . . 1 . . . . . . . 1 . . Security Status 1 | . . . . . . . . . . . . . . . . . . 1 . . . . . . . . . . Zone Layout 5 | . 1 . . . . 1 . . . . . . . . . . 1 . . . . . . . 1 1 . . Fabricator Hacks 4 | . . . . . . . . . . . . . . . . . . 2 . . . . 1 1 . . . . Network Status 4 | . . . . . . . . . . . . . . . . . . 2 . . . . 1 1 . . . . Repair Station Hacks 3 | . . . . . . 1 . . . . . . . . . . . 2 . . . . . . . . . . Scan Component 2 | . . . . . . 1 . . . . . . . . . . . 1 . . . . . . . . . . Repair 1 | . . . . . . . . . . . . . . . . . . 1 . . . . . . . . . . Recycling Unit Hacks 2 | . . . . . . . 1 . . . . . . . . . . . . . . . 1 . . . . . Retrieve Components 2 | . . . . . . . 1 . . . . . . . . . . . . . . . 1 . . . . . Scanalyzer 1 | . . . . . . . . . . . . . 1 . . . . . . . . . . . . . . . Insert Component 1 | . . . . . . . . . . . . . 1 . . . . . . . . . . . . . . . Garrison Access Hacks 3 | . . . . . . . . . . . . . . . . . . . . . . . 2 . . . 1 . Seal Access 3 | . . . . . . . . . . . . . . . . . . . . . . . 2 . . . 1 . Unauthorized Hacks 48 | . 2 . 10 . 9 3 . . . . . . . 4 . . . 12 . . . . 6 1 1 . . . Terminals 33 | . 2 . 9 . 8 1 . . . . . . . 4 . . . 7 . . . . 1 1 . . . . Assimilate 3 | . . . 1 . 1 . . . . . . . . . . . . 1 . . . . . . . . . . Botnet 8 | . 1 . 2 . . 1 . . . . . . . 2 . . . . . . . . 1 1 . . . . Disrupt 1 | . . . . . 1 . . . . . . . . . . . . . . . . . . . . . . . Operators 3 | . . . 1 . 1 . . . . . . . . . . . . 1 . . . . . . . . . . Skim 18 | . 1 . 5 . 5 . . . . . . . . 2 . . . 5 . . . . . . . . . . Fabricators 10 | . . . . . . . . . . . . . . . . . . 5 . . . . 5 . . . . . Report 2 | . . . . . . . . . . . . . . . . . . 1 . . . . 1 . . . . . Prioritize 2 | . . . . . . . . . . . . . . . . . . 1 . . . . 1 . . . . . Liberate 4 | . . . . . . . . . . . . . . . . . . 2 . . . . 2 . . . . . Haulers 2 | . . . . . . . . . . . . . . . . . . 1 . . . . 1 . . . . . Repair Stations 1 | . . . . . . . . . . . . . . . . . . . . . . . . . 1 . . . Mechanics 1 | . . . . . . . . . . . . . . . . . . . . . . . . . 1 . . . Recycling Units 4 | . . . 1 . 1 2 . . . . . . . . . . . . . . . . . . . . . . Reject 1 | . . . . . . 1 . . . . . . . . . . . . . . . . . . . . . . Recyclers 1 | . . . . . . 1 . . . . . . . . . . . . . . . . . . . . . . Tunnel 2 | . . . 1 . 1 . . . . . . . . . . . . . . . . . . . . . . . Scanalyzers . | . . . . . . . . . . . . . . . . . . . . . . . . . . . . . Garrison Access . | . . . . . . . . . . . . . . . . . . . . . . . . . . . . . Data Cores Recovered 2 | . . . . . . . . . . . . . . . . . . 1 . . . . . . . 1 . . Used . | . . . . . . . . . . . . . . . . . . . . . . . . . . . . . Hacking Detections 76 | . 2 . 8 1 9 10 3 . . . . . 4 10 . . 3 8 . . . . 5 3 3 3 1 3 Full Trace Events 6 | . 1 . . 1 1 . 2 . . . . . . . . . . . . . . . 1 . . . . . Feedback Events 2 | . . . . . . . 1 . . . . . . . . . . . . . . . 1 . . . . . Corruption 2 | . . . . . . . 1 . . . . . . . . . . . . . . . 1 . . . . . Feedback Blocked . | . . . . . . . . . . . . . . . . . . . . . . . . . . . . . Robot Schematics Acquired . | . . . . . . . . . . . . . . . . . . . . . . . . . . . . . Robots Built . | . . . . . . . . . . . . . . . . . . . . . . . . . . . . . Authchips . | . . . . . . . . . . . . . . . . . . . . . . . . . . . . . Time . | . . . . . . . . . . . . . . . . . . . . . . . . . . . . . Total Robot Build Rating . | . . . . . . . . . . . . . . . . . . . . . . . . . . . . . Part Schematics Acquired 10 | . 1 . 1 . . 1 . . . . . . . . . . . 3 . . 4 . . . . . . . Parts Built . | . . . . . . . . . . . . . . . . . . . . . . . . . . . . . Authchips . | . . . . . . . . . . . . . . . . . . . . . . . . . . . . . Time . | . . . . . . . . . . . . . . . . . . . . . . . . . . . . . Total Part Build Rating . | . . . . . . . . . . . . . . . . . . . . . . . . . . . . . Parts Repaired 1 | . . . . . . . . . . . . . . . . . . 1 . . . . . . . . . . Time 22 | . . . . . . . . . . . . . . . . . . 22 . . . . . . . . . . Parts Recycled . | . . . . . . . . . . . . . . . . . . . . . . . . . . . . . Recycled Matter . | . . . . . . . . . . . . . . . . . . . . . . . . . . . . . Retrieved Matter . | . . . . . . . . . . . . . . . . . . . . . . . . . . . . . Retrieved Components 5 | . . . . . . . 3 . . . . . . . . . . . . . . . 2 . . . . . Parts Scanalyzed 1 | . . . . . . . . . . . . . 1 . . . . . . . . . . . . . . . Part Schematics Acquired . | . . . . . . . . . . . . . . . . . . . . . . . . . . . . . Parts Damaged . | . . . . . . . . . . . . . . . . . . . . . . . . . . . . . Bothacking | -11 -10 -10 -9 -9 -8 -8 -7 -7 -7 -7 -7 -6 -6 -6 -6 -6 -6 -5 -5 -5 -5 -4 -4 -3 -2 -2 -1 -1 ------------ Run | Yrd Mat Min Mat Min Mat Sto Fac Low Low Zio Dee Pro Fac Ext Cet Arc Hub Fac Upp Upp Zhi Pro Fac Res Res Tes Acc Com Used RIF Installer . | . . . . . . . . . . . . . . . . . . . . . . . . . . . . . Robots Hacked 2 | . . . . . . . . . . 1 . . . . . . . . . . . . . . . . . 1 Non-combat . | . . . . . . . . . . . . . . . . . . . . . . . . . . . . . Combat 1 | . . . . . . . . . . 1 . . . . . . . . . . . . . . . . . . Robot Hacks Applied 1 | . . . . . . . . . . 1 . . . . . . . . . . . . . . . . . . parse_system 1 | . . . . . . . . . . 1 . . . . . . . . . . . . . . . . . . Manual 1 | . . . . . . . . . . . . . . . . . . . . . . . . . . . . 1 Relay Couplers Released 1 | . . . . . . . . . . . . . . . . . 1 . . . . . . . . . . . Machine Destruction 1 | . . . . . . . . . . . . . . . . . 1 . . . . . . . . . . . Fabnet Peak Effective % . | . . . . . . . . . . . . . . . . . . . . . . . . . . . . . Robots Rewired 29 | . . . . . . . . 3 2 . . . . 22 . . . . . . . . 1 . . 1 . . Allies Hacked . | . . . . . . . . . . . . . . . . . . . . . . . . . . . . . Hacks Repelled . | . . . . . . . . . . . . . . . . . . . . . . . . . . . . . Allies | -11 -10 -10 -9 -9 -8 -8 -7 -7 -7 -7 -7 -6 -6 -6 -6 -6 -6 -5 -5 -5 -5 -4 -4 -3 -2 -2 -1 -1 -------- Run | Yrd Mat Min Mat Min Mat Sto Fac Low Low Zio Dee Pro Fac Ext Cet Arc Hub Fac Upp Upp Zhi Pro Fac Res Res Tes Acc Com Total Allies 67 | . . 3 1 . . 12 . 3 2 . . . . 28 5 . . 2 . . . . 4 . . 1 3 3 Largest Group 12 | . . 3 3 . . 12 . 3 3 3 2 . . 11 9 4 3 2 . . . . 3 . . 1 4 3 Highest-Rated Group 582 | . . 40 40 . . 235 . 90 90 62 30 . . 407 582 418 288 82 . . . . 141 . . 164 543 376 Highest-Rated Ally 164 | . . 16 16 . . 31 . 30 30 30 16 . . 159 159 130 96 41 . . . . 49 . . 164 164 164 Total Orders 9 | . . . . . . . . . . 2 3 . . . . 2 . . . . . . . . . . 2 . STAY 5 | . . . . . . . . . . 1 2 . . . . 1 . . . . . . . . . . 1 . FOLLOW 4 | . . . . . . . . . . 1 1 . . . . 1 . . . . . . . . . . 1 . Ally Attacks 499 | . . . 22 . . 29 . 12 30 9 29 . . 197 63 9 35 . . . . . 24 . . . 27 13 Total Damage 12053 | . . . 190 . . 390 . 266 726 50 231 . . 4194 2252 326 1200 . . . . . 647 . . . 973 608 Kills 68 | . . . 4 . . 2 . 2 6 . 5 . . 20 10 2 8 . . . . . . . . . 6 3 Allies Corrupted 2 | . . . . . . . . . . . . . . . . . . . . . . . 1 . . . . 1 Allies Melted . | . . . . . . . . . . . . . . . . . . . . . . . . . . . . . Intel | -11 -10 -10 -9 -9 -8 -8 -7 -7 -7 -7 -7 -6 -6 -6 -6 -6 -6 -5 -5 -5 -5 -4 -4 -3 -2 -2 -1 -1 ------- Run | Yrd Mat Min Mat Min Mat Sto Fac Low Low Zio Dee Pro Fac Ext Cet Arc Hub Fac Upp Upp Zhi Pro Fac Res Res Tes Acc Com Active Infowar (turns) 26613 | 86 574 1390 1552 255 . . 131 1222 1822 2130 7 1021 893 1355 . 116 956 1127 1714 1820 339 2242 2132 985 586 1146 619 393 Optics 3 | . . . . . . . . . . . . . . . . . . . . . . . 3 . . . . . Sensors 18021 | . . . . . . . 131 1222 1822 2130 7 1021 625 . . . . 1127 1696 1747 314 2230 1586 695 462 843 363 . IFF 2695 | . . . . . . . . . . . . . 268 1355 . 116 956 . . . . . . . . . . . Structural 288 | . . . 288 . . . . . . . . . . . . . . . . . . . . . . . . . Seismic 2854 | 86 574 1390 603 201 . . . . . . . . . . . . . . . . . . . . . . . . T.N.C. 1772 | . . . 1408 54 . . . . . . . . . . . . . . . . . . . 310 . . . . Machine Analysis 4306 | . . . . . . . . . . . . . . . . . . . . . . . 729 985 586 1146 619 241 Jamming 10259 | . . . . . . . . . . . . . . . . . . 705 1708 1789 339 1825 1244 . 568 1146 542 393 Robot Analysis Total 7 | . . . . . . . . . . . . . . . . . . 3 . . 4 . . . . . . . Derelict Logs Recovered 16 | . . 1 . 1 . . . 2 2 3 . 1 . . . . . . 1 3 . 2 . . . . . . Drone Launches . | . . . . . . . . . . . . . . . . . . . . . . . . . . . . . Drone Recoveries . | . . . . . . . . . . . . . . . . . . . . . . . . . . . . . Exploration | -11 -10 -10 -9 -9 -8 -8 -7 -7 -7 -7 -7 -6 -6 -6 -6 -6 -6 -5 -5 -5 -5 -4 -4 -3 -2 -2 -1 -1 ------------- Run | Yrd Mat Min Mat Min Mat Sto Fac Low Low Zio Dee Pro Fac Ext Cet Arc Hub Fac Upp Upp Zhi Pro Fac Res Res Tes Acc Com Turns Passed 41205 | 177 591 1390 1552 1113 1460 1391 583 1564 1822 2598 4498 1147 1270 1978 400 1138 1117 1432 1768 1821 339 2358 2163 985 586 1146 619 2199 Spaces Moved 22416 | 89 240 716 614 609 633 730 409 1001 1200 1669 2751 745 519 814 171 481 524 682 1218 1108 216 1328 1235 460 366 571 228 1089 Core 4 | 4 . . . . . . . . . . . . . . . . . . . . . . . . . . . . Treads 5364 | 85 209 . 479 104 7 . . 715 1200 1669 896 . . . . . . . . . . . . . . . . . Legs 14669 | . 30 716 135 62 116 . . . . . 1855 745 519 814 171 481 524 682 1218 1108 216 1328 1235 460 366 571 228 1089 Wheels 2379 | . 1 . . 443 510 730 409 286 . . . . . . . . . . . . . . . . . . . . Hover . | . . . . . . . . . . . . . . . . . . . . . . . . . . . . . Flight . | . . . . . . . . . . . . . . . . . . . . . . . . . . . . . Fastest Speed 50 | 50 115 190 160 110 120 105 105 130 145 145 110 130 130 132 135 135 135 130 135 135 135 135 135 132 132 132 112 87 Average Speed 139 | 155 164 190 166 138 135 122 118 142 145 145 128 130 138 159 135 144 138 143 135 135 135 135 135 141 132 133 133 136 Slowest Speed 320 | 160 260 190 190 200 320 145 145 145 145 145 310 130 199 189 183 186 183 186 135 135 183 186 183 176 132 135 135 155 Overloaded Moves . | . . . . . . . . . . . . . . . . . . . . . . . . . . . . . Propulsion Burnouts . | . . . . . . . . . . . . . . . . . . . . . . . . . . . . . Robots Hopped . | . . . . . . . . . . . . . . . . . . . . . . . . . . . . . Potential Cave-ins . | . . . . . . . . . . . . . . . . . . . . . . . . . . . . . Cave-ins Triggered . | . . . . . . . . . . . . . . . . . . . . . . . . . . . . . Exploration Rate (%) 59 | 6 53 97 62 91 53 87 12 82 96 88 88 78 14 84 64 98 52 21 95 93 60 89 40 16 14 54 9 35 Regions Visited 28 Branch Regions 18 Pre-discovered Areas 17 | . . 1 1 . 6 . . . . 1 . 1 . . . . . 1 1 1 3 1 . . . . . . Known Exits Taken 20 | . . . 1 1 1 1 1 1 1 1 . 1 . . . . 1 1 1 1 1 1 1 1 1 1 1 . Unknown Exits Taken 8 | 1 1 1 . . . . . . . . 1 . 1 1 1 1 . . . . . . . . . . . . Scrap Searched 20 | . . 1 . 2 . . . 3 3 3 . 2 . . . . . . 3 2 . 1 . . . . . . Spaces Dug 92 | . . . . 4 . 1 . . . . . . 1 14 . 1 4 2 8 16 . 1 4 . 8 9 6 13 Terrain Destroyed 824 | . . . 52 32 5 3 . . . . 43 23 13 23 4 12 187 21 19 91 . 68 100 27 15 24 16 46 Melee 2 | . . . . . . 1 . . . . . . . . . . . . . . . . . . 1 . . . Projectile 308 | . . . . 5 4 2 . . . . 8 23 13 23 4 12 26 21 19 28 . 2 39 12 14 24 11 18 AOE 514 | . . . 52 27 1 . . . . . 35 . . . . . 161 . . 63 . 66 61 15 . . 5 28 Terrain Rammed . | . . . . . . . . . . . . . . . . . . . . . . . . . . . . . Walls Destroyed . | . . . . . . . . . . . . . . . . . . . . . . . . . . . . . Machines Disabled . | . . . . . . . . . . . . . . . . . . . . . . . . . . . . . Actions | -11 -10 -10 -9 -9 -8 -8 -7 -7 -7 -7 -7 -6 -6 -6 -6 -6 -6 -5 -5 -5 -5 -4 -4 -3 -2 -2 -1 -1 --------- Run | Yrd Mat Min Mat Min Mat Sto Fac Low Low Zio Dee Pro Fac Ext Cet Arc Hub Fac Upp Upp Zhi Pro Fac Res Res Tes Acc Com Total 30301 | 113 356 739 928 757 1163 1110 480 1103 1278 1791 3668 853 1005 1385 301 876 771 1066 1297 1384 246 1880 1590 763 433 847 510 1608 Wait 4803 | 5 52 17 97 15 421 127 24 23 12 75 668 46 381 201 69 324 131 274 35 218 . 488 172 222 8 152 238 308 Move 22387 | 88 239 715 613 608 632 729 408 1000 1199 1668 2750 744 518 813 170 480 523 681 1217 1107 215 1327 1234 459 365 570 227 1088 Hop . | . . . . . . . . . . . . . . . . . . . . . . . . . . . . . Pick Up 283 | 7 7 2 17 18 9 9 5 2 2 4 58 7 20 4 2 11 3 14 4 1 1 16 16 16 5 4 3 16 Fast Attach 271 | 7 5 . 15 8 15 16 7 1 3 3 39 4 10 6 16 9 6 17 5 6 7 5 16 10 7 11 4 13 Attach 56 | . 2 . 6 6 1 6 2 1 . 1 7 . 3 . . . . 4 . . . 3 1 2 2 . . 9 Detach 31 | . 1 . 5 . 1 3 . . . . 3 . 2 . . . . 4 . 1 . 1 1 . 1 1 2 5 Swap 271 | . 4 . 17 16 15 13 8 17 3 4 10 6 2 13 . 8 2 7 6 16 4 10 33 14 11 20 1 11 Drop 536 | . 4 1 36 18 30 25 12 1 7 7 82 11 28 15 20 18 14 23 8 8 7 19 36 24 14 25 14 29 Fire 1045 | 6 40 4 122 67 39 53 12 15 3 1 47 25 34 61 24 26 76 40 22 26 6 10 68 16 16 56 21 109 Melee 58 | . . . . . . 20 2 2 . 1 . 10 6 5 . . . 1 . . 6 1 . . 4 . . . Ram 1 | . . . . 1 . . . . . . . . . . . . . . . . . . . . . . . . Kick 28 | . . . . . . . . . . . . . 1 3 . . 15 1 . . . . 7 . . 1 . . Crush 2 | . 2 . . . . . . . . . . . . . . . . . . . . . . . . . . . Escape Stasis 18 | . . . . . . 8 . . . . . . . 5 . . . . . . . . . . . . . 5 Rewire 377 | . . . . . . . . 41 49 . . . . 259 . . . . . . . . 6 . . 7 . 15 Trap 107 | . . . . . . 101 . . . . 4 . . . . . 1 . . 1 . . . . . . . . Miscellaneous 27 | . . . . . . . . . . 27 . . . . . . . . . . . . . . . . . . Route ------- -11/Scrapyard -10/Materials (discovered 3 exits: *Mat x2 / [*Min]) -10/Mines (discovered 4 exits: *Mat x2 / [*Exi] / [*Sub]) -9/Materials (discovered 5 exits: *Mat x3 / *Min x2) -9/Mines (discovered 2 exits: *Mat x2) -8/Materials (discovered 2 exits: *Sto x2) -8/Storage (discovered 2 exits: *Fac / [Rec]) -7/Factory (discovered 5 exits: Fac x3 / *Low x2) -7/Lower Caves -7/Lower Caves (discovered 2 exits: *Fac / *Zio) -7/Zion (discovered 2 exits: *Dee / *Pro) -7/Deep Caves -6/Proximity Caves -6/Factory (discovered 4 exits: Fac / Low / *Ext x2) -6/Extension (discovered 2 exits: *Fac / *Cet) -6/Cetus (discovered 2 exits: *Fac / *Arc) -6/Archives (discovered 3 exits: *Fac / *Hub x2) -6/Hub_04(d) (discovered 2 exits: *Fac x2) -5/Factory (discovered 4 exits: Fac x2 / *Upp x2) -5/Upper Caves -5/Upper Caves (discovered 2 exits: *Fac / *Zhi) -5/Zhirov -4/Proximity Caves -4/Factory (discovered 2 exits: *Res x2) -3/Research -2/Research -2/Testing -1/Access (discovered 2 exits: Sur / *Com) -1/Command (discovered 2 exits: *Sur x2) To Epsilon Eridani History --------- Turn | Location | Event 5 | -11/Scrapyard | Discovered new exit (range 16) 178 | -11/Scrapyard | Entered Materials 312 | -10/Materials | Build established: Mutant 319 | -10/Materials | Discovered new exit (range 11) 519 | -10/Materials | Destroyed 8 combat bots 582 | -10/Materials | Discovered new exit (range 4) 604 | -10/Materials | Discovered new exit (range 14) 676 | -10/Materials | Core integrity fell below 50% 769 | -10/Materials | Entered Mines 788 | -10/Mines | Met a Derelict bent on vengeance 954 | -10/Mines | Deemed a non-threat by the Exiles lab entrance 954 | -10/Mines | Discovered new exit (range 5) 1033 | -10/Mines | Build established: Scavenger-Mutant 1162 | -10/Mines | Learned location of Storage (-8) 1587 | -10/Mines | Found a damaged Exp. Sensor Array with a note attached 1591 | -10/Mines | Found Prototype Device 1615 | -10/Mines | Learned Materials garrison access intel 1635 | -10/Mines | Core integrity fell below 20% 1690 | -10/Mines | Discovered new exit (range 8) 2088 | -10/Mines | Discovered new exit (range 10) 2111 | -10/Mines | Discovered new exit (range 10) 2145 | -10/Mines | Assisted by bots powering up and referring to "LRC-V3" 2159 | -10/Mines | Entered Materials 2159 | -9/Materials | Accompanied by 3 allies 2159 | -9/Materials | Evolved 2 slots: Propulsion x1, Utility x1 2511 | -9/Materials | Lost 3 allies 2610 | -9/Materials | Destroyed 9 combat bots 2871 | -9/Materials | Discovered new exit (range 4) 2957 | -9/Materials | Identified exit to Mines 2959 | -9/Materials | First assault squad dispatched 3361 | -9/Materials | Learned Recycling recycling unit intel 3405 | -9/Materials | Identified exit to Materials 3460 | -9/Materials | Learned location of 1 exit from Recycling 3470 | -9/Materials | Destroyed 7 combat bots 3473 | -9/Materials | Learned 2 Storage zone layouts 3473 | -9/Materials | Lost 4 parts (2n1u1w) 3527 | -9/Materials | Learned Storage trap positions 3553 | -9/Materials | Core integrity fell below 50% 3711 | -9/Materials | Entered Mines 3852 | -9/Mines | Assembled infested the area 3871 | -9/Mines | Met a Derelict who couldn't figure out how to use a Trap Extractor 4036 | -9/Mines | System corruption reached 10% 4052 | -9/Mines | Core integrity fell below 20% 4073 | -9/Mines | Destroyed 12 combat bots 4076 | -9/Mines | Lost 4 parts (1p1n1u1w) 4175 | -9/Mines | Build established: Mutant 4264 | -9/Mines | Lost 3 parts (1p2n) 4499 | -9/Mines | Received a Rocket Launcher from a helpful Derelict 4648 | -9/Mines | A weapon hastily lodged in a ceiling crevice suddenly fell to the ground 4666 | -9/Mines | Discovered exit to Materials (range 6) 4701 | -9/Mines | Discovered exit to Materials (range 14) 4824 | -9/Mines | Entered Materials 4824 | -8/Materials | Evolved 2 slots: Propulsion x1, Weapon x1 4825 | -8/Materials | Identified exit to Storage 4826 | -8/Materials | Loaded intel: 1 garrison access location 4940 | -8/Materials | Destroyed 7 combat bots 5374 | -8/Materials | Build established: Tank 5423 | -8/Materials | Discovered exit to Storage (range 6) 5645 | -8/Materials | Learned location of 3 exits from Factory 5714 | -8/Materials | Learned 4 Factory zone layouts 5824 | -8/Materials | Learned location of Extension (-6) 5893 | -8/Materials | Learned 4 Recycling zone layouts 5984 | -8/Materials | Learned Factory garrison access intel 6045 | -8/Materials | Learned location of Zion (-7) 6114 | -8/Materials | Learned 8 Factory zone layouts 6284 | -8/Materials | Entered Storage 6285 | -8/Storage | Identified exit to Factory 6287 | -8/Storage | Loaded intel: 23 trap records 6985 | -8/Storage | Assisted by bots powering up and referring to "LRC-V3" 6985 | -8/Storage | Discovered new exit (range 9) 7220 | -8/Storage | Met a pair of Derelict thieves 7290 | -8/Storage | Build established: Commander-Mutant 7333 | -8/Storage | Lost 12 allies 7343 | -8/Storage | Lost 7 parts (4n2u1w) 7596 | -8/Storage | Build established: Mutant 7675 | -8/Storage | Entered Factory 7675 | -7/Factory | Evolved 2 slots: Power x1, Utility x1 7676 | -7/Factory | Identified exit to Factory 7676 | -7/Factory | Identified exit to Lower Caves 7679 | -7/Factory | Loaded intel: 3 garrison access locations 8258 | -7/Factory | Entered Lower Caves 8539 | -7/Lower Caves | Learned Factory stockpile data 8685 | -7/Lower Caves | Attacked by a delusional Derelict stockpiling Unaware 9504 | -7/Lower Caves | Discovered new exit (range 15) 9816 | -7/Lower Caves | Identified exit to Lower Caves 9822 | -7/Lower Caves | Entered another Lower Caves area 9822 | -7/Lower Caves | Accompanied by 3 allies 9834 | -7/Lower Caves | Discovered exit to Factory (range 10) 10475 | -7/Lower Caves | Learned 8 Factory zone layouts 11266 | -7/Lower Caves | Discovered new exit (range 16) 11287 | -7/Lower Caves | Identified exit to Zion 11644 | -7/Lower Caves | Entered Zion 11644 | -7/Zion | Accompanied by 3 allies 11733 | -7/Zion | Received a hallucinogenic algorithm 11784 | -7/Zion | Discovered new exit (range 16) 11914 | -7/Zion | Found Prototype Device 11914 | -7/Zion | Identified Mobile Refinery Mk. CCLXVII 11991 | -7/Zion | Identified exit to Proximity Caves 12583 | -7/Zion | Learned Factory non-interactive machine intel 12975 | -7/Zion | Met Imprinter 13342 | -7/Zion | Discovered new exit (range 3) 13342 | -7/Zion | Saw the warning signs outside the Deep Caves entrance 13345 | -7/Zion | Identified exit to Deep Caves 13594 | -7/Zion | Found CR-A16's Pointy Stick 14100 | -7/Zion | Build established: Gunner 14242 | -7/Zion | Entered Deep Caves 14242 | -7/Deep Caves | Accompanied by 2 allies 14815 | -7/Deep Caves | Attacked by Z-Imprinter 14851 | -7/Deep Caves | Destroyed Z-Imprinter 14871 | -7/Deep Caves | Found Prototype Protection 14871 | -7/Deep Caves | Identified Zio. Weapon Casing 14875 | -7/Deep Caves | Lost 3 parts (2p1n) 15258 | -7/Deep Caves | Found Prototype Protection 15258 | -7/Deep Caves | Identified Zio. Heavy Carapace 15343 | -7/Deep Caves | Z-Facility disabled 15388 | -7/Deep Caves | Lost 4 parts (2n2u) 15883 | -7/Deep Caves | Found Zio. Heavy Carapace 15993 | -7/Deep Caves | Found Surveybot 24 Scanner 15995 | -7/Deep Caves | Found Surveybot 24 Chip 16146 | -7/Deep Caves | Build established: Mutant 16509 | -7/Deep Caves | Discovered new exit (range 7) 16524 | -7/Deep Caves | Build established: Gunner 16904 | -7/Deep Caves | Found Zio. Heavy Carapace 16906 | -7/Deep Caves | Found Zio. Weapon Casing 17456 | -7/Deep Caves | Spotted AG-90936 17481 | -7/Deep Caves | Destroyed AG-90936 17569 | -7/Deep Caves | Spotted AG-47700 17598 | -7/Deep Caves | Destroyed AG-47700 17608 | -7/Deep Caves | Build established: Mutant 17640 | -7/Deep Caves | System corruption reached 10% 17900 | -7/Deep Caves | Triggered Deep Caves wall 17900 | -7/Deep Caves | Spotted AS-93152 17910 | -7/Deep Caves | Spotted AS-81713 17917 | -7/Deep Caves | Destroyed AS-93152 17919 | -7/Deep Caves | Destroyed AS-81713 17934 | -7/Deep Caves | Destroyed 36 combat bots 17945 | -7/Deep Caves | Found Prototype Processor 17985 | -7/Deep Caves | Exposed GOLEM chamber 17987 | -7/Deep Caves | Found GOLEM Unit 18489 | -7/Deep Caves | Build established: Golem 18650 | -7/Deep Caves | Found GOLEM Unit 18673 | -7/Deep Caves | Found GOLEM Unit 18740 | -7/Deep Caves | Entered Proximity Caves 18960 | -6/Proximity Caves | Spotter reported a threat 19007 | -6/Proximity Caves | Attracted the attention of an 0b10 checkpoint 19039 | -6/Proximity Caves | Build established: Skirmisher 19173 | -6/Proximity Caves | Spotted B-75 Beast 19197 | -6/Proximity Caves | Spotter reported a threat 19226 | -6/Proximity Caves | Core integrity fell below 50% 19244 | -6/Proximity Caves | Destroyed B-75 Beast 19475 | -6/Proximity Caves | Build established: Mutant 19672 | -6/Proximity Caves | Discovered exit to Factory (range 10) 19887 | -6/Proximity Caves | Entered Factory 19887 | -6/Factory | Evolved 2 slots: Utility x2 19888 | -6/Factory | Identified exit to Lower Caves 19889 | -6/Factory | Identified exit to Factory 19891 | -6/Factory | Loaded intel: 221 non-interactive machine locations 19983 | -6/Factory | System corruption reached 10% 20337 | -6/Factory | Build established: Golem 20458 | -6/Factory | Identified Exp. Sensor Array 20502 | -6/Factory | Identified Modified TNC 20577 | -6/Factory | Discovered new exit (range 6) 20812 | -6/Factory | Discovered new exit (range 10) 21157 | -6/Factory | Entered Extension 21726 | -6/Extension | Build established: Commander-Golem 21964 | -6/Extension | Rescued a captive Derelict 22392 | -6/Extension | Spotted B-75 Beast 22413 | -6/Extension | Spotted B-75 Beast 22425 | -6/Extension | Allies destroyed B-75 Beast 22431 | -6/Extension | Revealed the true nature of CR-A16's Pointy Stick 22434 | -6/Extension | Destroyed B-75 Beast 22457 | -6/Extension | Disrupted transfer network 22470 | -6/Extension | Lost 5 allies 22626 | -6/Extension | Rescued a captive Derelict 22627 | -6/Extension | Rescued a captive Derelict 22660 | -6/Extension | Rescued a captive Derelict 22677 | -6/Extension | Rescued a captive Derelict 22766 | -6/Extension | Lost 4 allies 22968 | -6/Extension | Lost 3 allies 22975 | -6/Extension | Rescued A7 23066 | -6/Extension | Discovered exit to Factory (range 10) 23067 | -6/Extension | Discovered new exit (range 6) 23135 | -6/Extension | Entered Cetus 23135 | -6/Cetus | Accompanied by 9 allies (A7) 23140 | -6/Cetus | Acquired a Cetus Manufacturing Module code from A7 23169 | -6/Cetus | Spotted Cetus Guard 23170 | -6/Cetus | Spotted Cetus Guard 23174 | -6/Cetus | Spotted Cetus Guard 23176 | -6/Cetus | Spotted Cetus Guard 23191 | -6/Cetus | Allies destroyed Cetus Guard 23194 | -6/Cetus | Allies destroyed Cetus Guard 23195 | -6/Cetus | Destroyed Cetus Guard 23199 | -6/Cetus | Allies destroyed Cetus Guard 23224 | -6/Cetus | Lost 6 allies 23310 | -6/Cetus | Ran a hallucination algorithm 23310 | -6/Cetus | Started Cetus Manufacturing Module 23323 | -6/Cetus | Escorted A7 to Cetus Mainframe 23335 | -6/Cetus | Manufactured an Enhanced Grunt 23338 | -6/Cetus | Discovered new exit (range 15) 23360 | -6/Cetus | Manufactured an Enhanced Grunt 23385 | -6/Cetus | Manufactured an Enhanced Grunt 23404 | -6/Cetus | Spotted Cetus Guard 23404 | -6/Cetus | Spotted Cetus Guard 23407 | -6/Cetus | Spotted Cetus Guard 23409 | -6/Cetus | Spotted Cetus Guard 23410 | -6/Cetus | Manufactured an Enhanced Grunt 23424 | -6/Cetus | Allies destroyed Cetus Guard 23434 | -6/Cetus | Allies destroyed Cetus Guard 23435 | -6/Cetus | Manufactured an Enhanced Grunt 23436 | -6/Cetus | Allies destroyed Cetus Guard 23447 | -6/Cetus | Destroyed Cetus Guard 23454 | -6/Cetus | Discovered exit to Factory (range 16) 23461 | -6/Cetus | Met Revision 17 23463 | -6/Cetus | Lost 4 allies 23535 | -6/Cetus | Entered Archives 23535 | -6/Archives | Accompanied by 4 allies (A7) 23540 | -6/Archives | Received a hacking code to weaken MAIN.C 23666 | -6/Archives | Discovered new exit (range 15) 23760 | -6/Archives | Discovered new exit (range 15) 23769 | -6/Archives | Build established: Scavenger-Golem 23858 | -6/Archives | Discovered exit to Factory (range 16) 24134 | -6/Archives | Build established: Golem 24557 | -6/Archives | Unable to access archive contents 24557 | -6/Archives | Unable to access archive contents 24557 | -6/Archives | Unable to access archive contents 24557 | -6/Archives | Unable to access archive contents 24557 | -6/Archives | Unable to access archive contents 24557 | -6/Archives | Unable to access archive contents 24557 | -6/Archives | Unable to access archive contents 24557 | -6/Archives | Unable to access archive contents 24673 | -6/Archives | Entered Hub_04(d) 24673 | -6/Hub_04(d) | Accompanied by 3 allies 24713 | -6/Hub_04(d) | Build established: Scavenger-Golem 24947 | -6/Hub_04(d) | Garrison activated, responded to threat 24984 | -6/Hub_04(d) | Discovered exit to Factory (range 14) 25373 | -6/Hub_04(d) | First assault squad dispatched 25430 | -6/Hub_04(d) | Discovered exit to Factory (range 6) 25564 | -6/Hub_04(d) | Network Hub disabled 25567 | -6/Hub_04(d) | Core integrity fell below 50% 25676 | -6/Hub_04(d) | Lost 5 parts (1p1n3u) 25680 | -6/Hub_04(d) | Network Hub disabled 25790 | -6/Hub_04(d) | Entered Factory 25790 | -5/Factory | Evolved 2 slots: Utility x2 25933 | -5/Factory | Build established: Golem 26320 | -5/Factory | Identified exit to Upper Caves 26365 | -5/Factory | Repaired Imp. Trap Extractor 26973 | -5/Factory | Build established: Skirmisher 26994 | -5/Factory | Identified exit to Factory 27044 | -5/Factory | Learned Testing trap positions 27082 | -5/Factory | Learned Research garrison access intel 27109 | -5/Factory | Learned 2 Proximity Caves zone layouts 27127 | -5/Factory | Learned Testing garrison access intel 27151 | -5/Factory | Learned Extension emergency access door positions 27219 | -5/Factory | Learned location of Upper Caves (-4) 27222 | -5/Factory | Entered Upper Caves 27242 | -5/Upper Caves | Ambushed by wild Derelicts 27429 | -5/Upper Caves | Found Alien Artifact 27429 | -5/Upper Caves | Identified Dimensional Node Initializer 27429 | -5/Upper Caves | Initialized slip node 28014 | -5/Upper Caves | Attracted the attention of an 0b10 checkpoint 28682 | -5/Upper Caves | Encountered a Warlord checkpoint 28952 | -5/Upper Caves | Discovered new exit (range 8) 28961 | -5/Upper Caves | Identified exit to Upper Caves 28990 | -5/Upper Caves | Entered another Upper Caves area 29131 | -5/Upper Caves | Discovered exit to Factory (range 6) 29194 | -5/Upper Caves | Learned Factory stockpile data 29209 | -5/Upper Caves | Learned location of 1 exit from Factory 29271 | -5/Upper Caves | Learned Factory garrison access intel 29271 | -5/Upper Caves | Learned Armory terminal intel 30350 | -5/Upper Caves | Attracted the attention of an 0b10 checkpoint 30726 | -5/Upper Caves | Discovered new exit (range 8) 30733 | -5/Upper Caves | Identified exit to Zhirov 30779 | -5/Upper Caves | Learned 4 Factory zone layouts 30811 | -5/Upper Caves | Entered Zhirov 30811 | -5/Zhirov | Discovered new exit (range 3) 30824 | -5/Zhirov | Identified exit to Proximity Caves 30844 | -5/Zhirov | Met Zhirov 30878 | -5/Zhirov | Learned location of Quarantine (-3) 30878 | -5/Zhirov | Learned location of Testing (-2) 30878 | -5/Zhirov | Learned location of Command (-1) 30890 | -5/Zhirov | Zhirov requested help retrieving the SGEMP Prototype 30911 | -5/Zhirov | Found Alien Artifact 30911 | -5/Zhirov | Identified Integrated Reactor 30911 | -5/Zhirov | Installed Integrated Reactor, increased core energy generation (+10) 31096 | -5/Zhirov | Found Alien Artifact 31150 | -5/Zhirov | Entered Proximity Caves 31194 | -4/Proximity Caves | Destroyed 7 combat bots 31488 | -4/Proximity Caves | Found Alien Artifact 31488 | -4/Proximity Caves | Identified Core Expander 31488 | -4/Proximity Caves | Installed Core Expander, added new Power slot 32210 | -4/Proximity Caves | Spotted B-86 Titan 32268 | -4/Proximity Caves | Destroyed B-86 Titan 32298 | -4/Proximity Caves | Learned Research terminal intel 32606 | -4/Proximity Caves | Discovered exit to Factory (range 9) 32840 | -4/Proximity Caves | Build established: Scavenger-Skirmisher 33508 | -4/Proximity Caves | Entered Factory 33508 | -4/Factory | Evolved 2 slots: Utility x2 33509 | -4/Factory | Identified exit to Research 33512 | -4/Factory | Loaded intel: 4 garrison access locations 34668 | -4/Factory | Build established: Skirmisher 34870 | -4/Factory | Discovered exit to Research (range 6) 35058 | -4/Factory | Build established: Scavenger-Skirmisher 35660 | -4/Factory | Garrison activated, responded to threat 35671 | -4/Factory | Entered Research 35671 | -3/Research | Evolved 2 slots: Utility x2 35672 | -3/Research | Loaded intel: 23 terminal locations 35673 | -3/Research | Loaded intel: 4 garrison access locations 35698 | -3/Research | Lost 4 parts (2p1u1w) 35882 | -3/Research | Revision forces began assault on 0b10 35888 | -3/Research | Met up with Revision 17++ 36097 | -3/Research | Lost 3 allies 36195 | -3/Research | Found Prototype Launcher 36195 | -3/Research | Identified Hellfire Missile Launcher 36203 | -3/Research | Found Hellfire Missile Launcher 36250 | -3/Research | Found Prototype Device 36250 | -3/Research | Identified Exp. Shield Generator 36255 | -3/Research | Found Exp. Shield Generator 36382 | -3/Research | Research terminal network offline 36483 | -3/Research | Discovered new exit (range 15) 36544 | -3/Research | Build established: Tank 36599 | -3/Research | Identified exit to Research 36656 | -3/Research | Entered another Research area 36656 | -2/Research | Evolved 2 slots: Utility x2 36657 | -2/Research | Identified exit to Testing 36787 | -2/Research | Spotted B-90 Cyclops 36797 | -2/Research | Destroyed B-90 Cyclops 37223 | -2/Research | Found Prototype Device 37223 | -2/Research | Identified Thermal Barrier 37242 | -2/Research | Entered Testing 37243 | -2/Testing | Loaded intel: 19 trap records 37244 | -2/Testing | Loaded intel: 1 garrison access location 37532 | -2/Testing | Build established: Scavenger-Tank 37626 | -2/Testing | Found Prototype Launcher 37626 | -2/Testing | Identified Z-bomb Delivery System 37705 | -2/Testing | Spotted Striker 37711 | -2/Testing | Spotted Striker 37731 | -2/Testing | Destroyed Striker 37749 | -2/Testing | Destroyed Striker 37770 | -2/Testing | Spotted Alpha 7 37792 | -2/Testing | Destroyed Alpha 7 37832 | -2/Testing | Stole the SGEMP Prototype 38158 | -2/Testing | Discovered new exit (range 5) 38172 | -2/Testing | Identified exit to Access 38336 | -2/Testing | Found Prototype Ballistic Cannon 38336 | -2/Testing | Identified Perforator 38381 | -2/Testing | Rewired PX-DYWRQ4G2VF 38388 | -2/Testing | Entered Access 38388 | -1/Access | Accompanied by 1 ally 38388 | -1/Access | Evolved 2 slots: Utility x2 38389 | -1/Access | Delivered the SGEMP Prototype to Zhirov 38389 | -1/Access | Zhirov transferred Access data 38390 | -1/Access | Loaded intel: 121 machine locations 38390 | -1/Access | Loaded intel: 60 trap records 38390 | -1/Access | Identified exit to Surface 38390 | -1/Access | Discovered exit to Surface (range 83) 38390 | -1/Access | Identified exit to Command 38390 | -1/Access | Discovered exit to Command (range 146) 38662 | -1/Access | Zhirov warped through subspace 38733 | -1/Access | Build established: Scavenger-Golem 39007 | -1/Access | Entered Command 39007 | -1/Command | Accompanied by 1 ally 39355 | -1/Command | Spotted Combat Programmer 39355 | -1/Command | Spotted Combat Programmer 39368 | -1/Command | System corruption reached 10% 39371 | -1/Command | Spotted M Guard 39373 | -1/Command | Spotted M Guard 39389 | -1/Command | Destroyed Combat Programmer 39411 | -1/Command | Destroyed M Guard 39420 | -1/Command | Destroyed M Guard 39437 | -1/Command | Lost 5 parts (2p3u) 39712 | -1/Command | Destroyed Combat Programmer 39712 | -1/Command | All MAIN.C guards destroyed 39842 | -1/Command | Met MAIN.C 39842 | -1/Command | Hacked MAIN.C using A7's code 39855 | -1/Command | 0b10 Conduit disabled 39921 | -1/Command | Destroyed MAIN.C Shell 39924 | -1/Command | MAIN.C activated Command garrisons 39932 | -1/Command | Zhirov used SGEMP to disable MAIN.C 39963 | -1/Command | Lost 4 parts (2n1u1w) 40236 | -1/Command | Build established: Scavenger-Tank 40273 | -1/Command | Discovered exit to Surface (range 14) 40657 | -1/Command | Found Prototype Device 40657 | -1/Command | Identified Exp. Focal Shield 40660 | -1/Command | Found Prototype Device 40660 | -1/Command | Identified Adv. Particle Accelerator 40664 | -1/Command | Found Prototype Device 40664 | -1/Command | Identified Exp. System Purifier 40905 | -1/Command | Identified Transdimensional Reconstructor 40905 | -1/Command | Discovered exit to Surface (range 45) 40905 | -1/Command | Discovered exit to Surface (range 101) 40905 | -1/Command | Extracted map data and part IDs from MAIN.C's data core 41078 | -1/Command | Found Zero-point Reactor 41081 | -1/Command | Found Zero-point Reactor 41206 | *** | Escaped! Last Messages --------------- 41149_ System corrupted: Heat flow error (+211). 41154_ Attempting to rewire K-01 Serf. 41154_ K-01 Serf is broken beyond repair. 41155_ Attempting to rewire K-01 Serf. 41155_ K-01 Serf is broken beyond repair. 41156_ Destroyed Wheel. 41156_ K-01 Serf destroyed. 41156_ Destroyed Lgt. Ion Engine. 41156_ K-01 Serf destroyed. 41171_ Attempting to rewire G-73 Enforcer. 41171_ G-73 Enforcer is broken beyond repair. 41172_ Attempting to rewire G-73 Enforcer. 41172_ G-73 Enforcer is broken beyond repair. 41173_ Attempting to rewire G-73 Enforcer. 41173_ G-73 Enforcer is broken beyond repair. 41176_ Attempting to rewire G-73 Enforcer. 41176_ G-73 Enforcer is broken beyond repair. 41181_ System corrupted: FCS attempts to trigger Asb. Focal Cannon. 41181_ System corrupted: Asb. Focal Cannon misfires. 41181_ G-73 Enforcer destroyed. Map ----- +----------------------------------------------------+ | ??# ##### | | ??# ] #???# | | ??#!! #####+#+####+####### ########### " | | ??#!! ## ## #??# #######?#?# " | | ??### ####+### ## #??# # #?#?# | | ????###??# ### ## #??# # #?#?##### | | ?????????# + [## #??# # #?#?????? | | ?????????##### !%## #??# # #?####### | | ?????????????# =## #??# # #???????? | | ?????????????# =!!#####+###??# # #???????? | | ?????????????# =! #???# #????# + #???????? | | ?????????????# =! #####+###### # #???????? | | ?????????????# ## # # #???????? | | ?????????????# ## # # #???????? | | ?????????????# ## # + #???????? | | ?????????????# ## "" "" + # #???????? | | ?????????????#+####### ""T"" #^ ^#######???????? | | ?????????????# #?????# """ # #?????????????? | | ?????????????# #?????# # #?????????????? | | ?????????????# #?????# # #?????????????? | | ?????????????# #?????########### #?????????????? | | ?????????????# #???????????????# ##????????????? | | ?????????????# #???????????????# #????????????? | | ??????????####+###?????######??#### #????????????? | | ??????????# #?????# #######+###??????????? | | ??????????# ####### @ ## #??????????? | | ??????????# + ## ## #??????????? | | ??????????# #### #### ## #??????????? | | ??????????# #??# #### ## #??????????? | | ??????????# #??# ## #??????????? | | ??????????########??# ## #??????????? | | ????????????????????# ## #??????????? | | ????????????????????# ## #??????????? | | ????????????????????# ## #??????????? | | ????????????????????###### #####+#####??????????? | | ????????????????######???# #???# #??????????????? | | ????????????????# ##### #???# #??????????????? | | ????????????????# ##### #??????????????? | | ????????????????# " #??????????????? | | ????????????????# #####+########??????????????? | | ????????????????######??# #??????????????? | | ????????????????????????# #??????????????? | | ????????????????????????# #??????????????? | | ????????????????????????# #??????????????? | | ????????????????????????# #??????????????? | | ????????????????????????# #??????????????? | | ????????????????????????# #??????????????? | | ????????????????????????###########??????????????? | | ?????????????????????????????????????????????????? | | ?????????????????????????????????????????????????? | +----------------------------------------------------+ Best States ------------- Heat Dissipation 135 Energy Generation 83 Energy Capacity 2980 Matter Stores 300 Matter Capacity 300 Sight Range 16 Robot Scan Range 20 Terrain Scan Density 10 Jamming Range 16 Additional Mass Support 20 Armor Coverage 1200 Resistance: KI 30 Resistance: TH 15 Resistance: EX 15 Resistance: EM 15 Resistance: I 15 Resistance: S 15 Resistance: P 15 Weapon Shielding 100 Point Defense Rating 240 Weapon Cycling 15 Phase Shifting 8 Evasion (%) 78 Targeting Accuracy 8 Launcher Accuracy 20 Core Analysis 8 Armor Integrity Analysis 30 Recoil Reduction 4 Matter Filtering 30 Energy Filtering 50 Particle Charging 50 Offensive Hacking 20 Trap Extractor Capacity 6 Item Schematics ----------------- Hcp. Storage Unit | -10/Materials | Hacked Plasma Cutter | -9/Materials | Hacked System Shield | -8/Storage | Hacked Nanoactuators | -5/Factory | Hacked Antigrav Array | -5/Factory | Hacked Mic. Fission Core | -5/Factory | Hacked Assault Drone Bay | -5/Zhirov | Free Exp. Heat Sink | -5/Zhirov | Free Exp. Optical Array | -5/Zhirov | Free Imp. Arc Thrower | -5/Zhirov | Free Robot Schematics ------------------ None Fabricated ------------ Nothing Repaired ---------- Imp. Trap Extractor | 64% | -5/Factory Alien Tech Used ----------------- Dimensional Node Initializer Integrated Reactor Core Expander Achievements -------------- Sorry Old Pal Challenges ------------ None Game ------ Seed FluxHoverBlaster Manual? 0 Play Time 07:43:09 Cumulative 529.2 hours Start 2025.06.04 @ 13:18:03 End 2025.06.18 @ 08:45:11 Sessions 15 Manual Loads 0 Difficulty Rogue Special Mode None Game No. 312 Rogue 287 Adventurer 7 Explorer 18 Win Type 0 Total 41 Types 26/0/7/2/0/1/1/2/0/2 Lore% 94 Gallery% 89 Achievement% 81 Wizard Run 0 Options --------- Layout 0 ASCII 0 Keyboard 0 Movement Numpad Keybinds 0 Fullscreen 1 Font 12/Smallcaps Map View 83x54 Zoom Use 0% Tactical HUD 1 Map Filters NONE Filters NONE Steam 1 RUN: 299dc3ea-d122-4a1d-8b9e-9b9b8dedc9d1